Workbook

Sheet 1a. LISEZ-MOI (débutez ici)
B2: Objet
B4: ***Veuillez lire l’intégralité de cette feuille (1a), puis passez à la feuille suivante (1b).*** Cette pièce jointe, No I.11 - Estimation des réductions de gaz à effet de serre, est destinée à être utilisée par les demandeurs du volet 1 : Préconstruction et du volet 2 : Prêt à être mis en chantier du Fonds pour l’infrastructure des minéraux critiques (FIMC), et sera utilisée dans le cadre du programme pour l’évaluation de l’impact prévu de l’infrastructure proposée sur les émissions de gaz à effet de serre (GES) provenant des activités d’exploitation des ressources de minéraux critiques. Ce modèle assure l’utilisation d’une méthodologie et d’une approche uniformes pour la quantification de la réduction ou du remplacement des émissions de GES pour tous les types de projets. Ce modèle est aligné sur les spécifications générales de la norme CSA ISO 14064-2:20 Gaz à effet de serre - partie 2 (CSA ISO 14064-2:20), y compris les exigences et les processus normalisés pour la quantification, la surveillance et la déclaration des GES à l’échelle des projets. Veuillez noter que l’utilisation de ce modèle ne garantit pas le respect de toutes les exigences de la norme CSA ISO 14064-2:20 et que ce modèle ne peut PAS être utilisé pour répondre aux exigences d’autres programmes et/ou marchés du carbone. Veuillez remplir tous les champs en surbrillance et porter attention aux unités. Les champs qui ne sont pas mis en surbrillance ne doivent PAS être modifiés.
B6: Légende :
B8: Champ OBLIGATOIRE
B9: Champ FACULTATIF
B11: Principes fondamentaux :
B13: Exhaustivité | C13: Inclure toutes les émissions de GES pertinentes et leurs réductions ou remplacements. Inclure toute information pertinente pour remplir les critères et les procédures.
B14: Cohérence | C14: Permettre des comparaisons significatives de l’information relative aux GES.
B15: Précision | C15: Réduire les biais et les incertitudes dans la mesure du possible.
B16: Transparence | C16: Divulguer de l’information suffisante et appropriée sur les GES pour permettre aux utilisateurs prévus de prendre des décisions en étant raisonnablement confiants.
B17: Approche prudente | C17: Adopter des hypothèses, des valeurs et des procédures prudentes pour s’assurer que les réductions des émissions de GES ou les améliorations de l’élimination ne sont pas surestimées.
B20: Définitions pertinentes
B22: Term | C22: Definition
B23: Gaz à effet de serre (GES) | C23: Constituant gazeux de l’atmosphère, tant naturel qu’anthropique, qui absorbe et émet des rayonnements à des longueurs d’onde spécifiques dans le spectre du rayonnement infrarouge émis par la surface de la Terre, par l’atmosphère elle-même et par les nuages. REMARQUE : Les GES comprennent notamment le dioxyde de carbone (CO2), le méthane (CH4), l’oxyde nitreux (N2O), les hydrofluorocarbures (HFC), les perfluorocarbures (PFC) et l’hexafluorure de soufre (SF6).
B24: Émission de GES | C24: Masse totale d’un ou de plusieurs GES rejetés dans l’atmosphère au cours d’une période donnée.
B25: Réduction des GES | C25: Diminution calculée (delta) dans les émissions de GES entre un scénario de référence et le projet.
B26: Remplacement des GES | C26: Différence calculée (delta) dans les émissions de GES entre un scénario de référence hypothétique (scénario de remplacement le plus probable) et le projet.
B27: Scénario de référence | C27: Situation de référence comprenant les événements ou les conditions les plus susceptibles de persister ou de se produire en l’absence d’un projet proposé. Un scénario de référence peut également être une situation de référence hypothétique représentant au mieux les conditions les plus susceptibles de se produire en l’absence d’un projet proposé. Un scénario de référence déterminé à l’aide d’une approche propre au projet représente ce qui se produirait en l’absence du projet, alors qu’un programme de GES peut prescrire une autre approche pour déterminer le scénario de référence, telle qu’une norme de rendement.
B28: Équivalent en dioxyde de carbone (éq CO2) | C28: Unité permettant de comparer le forçage radiatif d’un GES à celui du dioxyde de carbone. REMARQUE : L’équivalent en dioxyde de carbone est calculé en multipliant la masse d’un GES donné par son potentiel de réchauffement planétaire.

Sheet 1b. Informations de base
B2: Fonctionnement du modèle
B4: Cette feuille permet de recueillir de l’information de base sur votre projet énergétique pour le volet 1 : Préconstruction et le volet 2 : Prêt à être mis en chantier du Fonds pour l’infrastructure des minéraux critiques (FIMC). Ce classeur permettra d’estimer les réductions et/ou les remplacements de GES annuels moyens de votre projet énergétique pour les technologies/types de projet suivants, en fonction de l’information fournie par le demandeur : raccordement au réseau (transport et distribution), production d’énergie renouvelable (solaire PV et éolienne terrestre) et/ou projets de stockage d’énergie. Les résultats figureront dans le tableau de révision présenté au bas de cette feuille. Les résultats seront également utilisés pour remplir la feuille 6. La méthodologie de l’estimation est également présentée ci-dessous. Il incombe au demandeur de vérifier le tableau de révision et de modifier les cellules en surbrillance de la feuille 6, au besoin. Si le projet inclut d’autres technologies (c’est-à-dire, la production d’hydroélectricité ou de biomasse, etc.), des renseignements plus détaillés sont nécessaires pour estimer les remplacements et/ou les réductions de GES du projet. Veuillez remplir les feuilles 2, 5 et 6. Vos réponses aux questions ci-dessous permettront également d’obtenir ce résultat à la ligne 21. Pour obtenir plus d’instructions, veuillez envoyer un courriel au cmif-fimc@nrcan-rncan.gc.ca ou consulter la feuille 4 pour des exemples. Veuillez vous assurer que vos données sont exprimées dans les bonnes unités pour chaque champ.
B6: Questions relatives à l’information de base sur le projet
B8: Calendrier et lieu du projet
B10: Année civile prévue ou connue au cours de laquelle le projet est mis en service et réalise dans les faits des réductions ou des remplacements des émissions (p. ex., 2027) :
B11: Durée de vie prévue de la technologie, du produit ou du service financé (années) (p. ex., 10) :
B12: Province ou territoire dans lequel le projet est situé :
B14: Technologies
B16: Un nouveau raccordement au réseau (ligne de transport ou de distribution) est-il prévu dans le cadre du projet pour répondre à des besoins qui seraient autrement satisfaits par d’autres sources d’énergie (p. ex., diesel, gaz naturel)?
B17: Le projet inclut-il de nouveaux actifs de production d’énergie renouvelable (p. ex., panneaux solaires, turbines éoliennes) ?
B18: Le projet inclut-il de nouveaux actifs de stockage d’énergie (p. ex., système de stockage d’énergie par batterie (SSEB)) ?
B19: Le projet inclut-il d’autres technologies énergétiques qui ont un impact sur les remplacements ou les réductions de GES?
B21: =IF(OR(D10="",D11="",D12="",D16="",D17="",D18="",D19=""),"Veuillez remplir les champs ci-dessus. Autrement, des renseignements plus détaillés sur l’impact de votre projet sur les GES sont nécessaires. Veuillez remplir les feuilles 2, 5 et 6.",IF(AND(D16="Non",D17="No",D18="Non"),"D’après l’information ci-dessus, des renseignements plus détaillés sur l’impact de votre projet sur les GES sont nécessaires. Veuillez passer aux feuilles 2, 5 et 6. Ne pas remplir les champs ci-dessous.",IF(D19="Oui","D’après l’information ci-dessus, des renseignements plus détaillés sur l’impact de votre projet sur les GES sont nécessaires. Veuillez remplir les feuilles 2, 5 et 6. Ne pas remplir les champs ci-dessous.","Veuillez remplir les champs ci-dessous, le cas échéant."))) -> Veuillez remplir les champs ci-dessus. Autrement, des renseignements plus détaillés sur l’impact de votre projet sur les GES sont nécessaires. Veuillez remplir les feuilles 2, 5 et 6.
B23: Information sur le projet énergétique
B25: Projets de raccordement au réseau
B27: Puissance nominale prévue (MW/MVA) :
B28: Tension prévue (kV) :
B29: Distance prévue (km) :
B30: Demande énergétique annuelle des projets miniers futurs et existants qui seraient desservis par l’infrastructure (MWh)* : *Inclure la somme de la demande annuelle d’électricité prévue ou connue de tous les projets miniers qui seraient desservis par le projet d’infrastructure.
B31: Cette demande énergétique serait-elle autrement satisfaite par la production au diesel (facteur d’émission : mazout léger - industriel)?
B33: =IF(D31="Oui","Veuillez remplir les champs ci-dessous, le cas échéant.",IF(D31="Non","D’après l’information ci-dessus, des renseignements plus détaillés sur l’impact de votre projet sur les GES sont nécessaires. Veuillez passer aux feuilles 2, 5 et 6. Ne pas remplir les champs ci-dessous.","Veuillez remplir les champs ci-dessus. Autrement, des renseignements plus détaillés sur l’impact de votre projet sur les GES sont nécessaires. Veuillez remplir les feuilles 2, 5 et 6.")) -> Veuillez remplir les champs ci-dessus. Autrement, des renseignements plus détaillés sur l’impact de votre projet sur les GES sont nécessaires. Veuillez remplir les feuilles 2, 5 et 6.
B35: Projets de production
B37: Indiquer le type de technologie de production :
B38: Indiquer la capacité énergétique de la nouvelle infrastructure de production d’électricité (MW) :
B39: Indiquer la production annuelle d’énergie prévue (rendement énergétique P50) de la nouvelle infrastructure de production d’électricité (MWh) : Le rendement énergétique P50 est une mesure statistique utilisée dans l’industrie des énergies renouvelables pour estimer la production d’énergie prévue d’un projet, tel qu’un parc solaire ou éolien. Pour les projets du volet 1, utiliser la meilleure estimation disponible.
B40: Cette production d’énergie remplacerait-elle l’électricité provenant du réseau provincial ou l’énergie produite au diesel (facteur d’émission : mazout léger - industriel)? Remarque : Si vous sélectionnez le réseau provincial, ce calcul suppose que la nouvelle production d’électricité remplacera un volume équivalent de production au gaz naturel comme ressource marginale.
B42: =IF(OR(D37="",D38="",D39="",D40=""),"Veuillez remplir les champs ci-dessus. Autrement, des renseignements plus détaillés sur l’impact de votre projet sur les GES sont nécessaires. Veuillez remplir les feuilles 2, 5 et 6.",IF(D40="Autre","D’après l’information ci-dessus, des renseignements plus détaillés sur l’impact de votre projet sur les GES sont nécessaires. Veuillez remplir les feuilles 2, 5 et 6. Ne pas remplir les champs ci-dessous.", "Veuillez saisir l’information demandée ci-dessous.")) -> Veuillez remplir les champs ci-dessus. Autrement, des renseignements plus détaillés sur l’impact de votre projet sur les GES sont nécessaires. Veuillez remplir les feuilles 2, 5 et 6.
B44: Projets de stockage
B46: Puissance nominale (MW) :
B47: Capacité énergétique (MWh) :
B48: Avant de poursuivre, veuillez noter que, parmi les cas d’utilisation courante suivants du stockage d’énergie, seule l’énergie écrêtée est prise en compte dans cette feuille : 1) Arbitrage énergétique. La batterie est chargée pendant les périodes creuses (par l’intermédiaire du réseau provincial ou territorial) et déchargée pendant les périodes de pointe (permettant de remplacer les GES issus du gaz naturel et/ou du diesel, en fonction du contexte spécifique de la mine). 2) À l’arrière du compteur. Les unités de stockage d’énergie sont raccordées à l’arrière du compteur. Les injections d’électricité dans le réseau sont possibles avec des incitatifs adéquats; cependant, la fonction principale de l’unité de stockage est de fournir de la valeur à l’arrière compteur, comme la réduction des pointes ou l’électricité de secours. 3) Énergie écrêtée. Les unités de stockage d’énergie peuvent être couplées à un actif de production d’énergie renouvelable dans le but de capter l’énergie écrêtée ou perdue.
B49: Sélectionner le cas d’utilisation qui décrit le mieux la manière dont le système de stockage sera utilisé :
B50: =IF(OR(D49="N/A",D49="Énergie écrêtée"),"Veuillez remplir les champs ci-dessous, le cas échéant.","Des renseignements plus détaillés sur l’impact de votre projet sur les GES sont nécessaires. Veuillez remplir les feuilles 2, 5 et 6.") -> Des renseignements plus détaillés sur l’impact de votre projet sur les GES sont nécessaires. Veuillez remplir les feuilles 2, 5 et 6.
B51: Production annuelle d’électricité grâce à l’ajout du stockage (MWh) (pour les projets d’énergie écrêtée) :
B53: Veuillez examiner le tableau ci-dessous et la feuille 6 (6. Résumé), et modifier les cellules en surbrillance au besoin. Si le tableau ci-dessous ne reflète pas correctement les remplacements de GES, veuillez en expliquer les raisons dans le champ ci-dessous et remplir les feuilles 2, 5 et 6.
B54: Le cas échéant, raisons pour lesquelles votre projet n’est pas correctement décrit dans le tableau ci-dessous :
B56: Tableau de révision
B57: Veuillez examiner le tableau ci-dessous et la feuille 6 (6. Résumé), et modifier les cellules en surbrillance au besoin. Si le tableau ci-dessous ne reflète pas correctement les remplacements de GES, veuillez en expliquer les raisons dans le champ ci-dessous et remplir les feuilles 2, 5 et 6.
B58: Méthodologie : Remplacement annuel net des émissions = Émissions de référence - Émissions du projet Où : Émissions de référence = ∑ (Énergie × Facteur d’émission de référence) Émissions du projet = ∑ (Énergie × Facteur d’émission du projet) N.B. : Pour les projets dont la base de référence implique la combustion de diesel, cette méthodologie suppose que 0,4 litre de diesel est consommé pour chaque kWh produit.
B59: Le cas échéant, raisons pour lesquelles votre projet n’est pas correctement décrit dans le tableau ci-dessous :
C61: Facteur d’émission (FE) du projet (téq CO2/MWh) | D61: Facteur d’émission (FE) de référence (téq CO2/MWh) | E61: Énergie (MWh) | F61: Émissions (annuelles) du projet (téq CO2) | G61: Émissions de référence (annuelles) (téq CO2) | H61: Remplacement annuel net des émissions (téq CO2)
B62: Interconnexion | C62: =IF(D16="Oui",AVERAGE(IF(D10+D11-1<=2050,INDEX('3. Données'!$C$32:$AB$44,MATCH(D12,'3. Données'!$B$32:$B$44,0),MATCH(TEXT(D10,"0"),'3. Données'!$C$31:$AB$31,0)):INDEX('3. Données'!$C$32:$AB$44,MATCH(D12,'3. Données'!$B$32:$B$44,0),MATCH(TEXT(D10+D11-1,"0"),'3. Données'!$C$31:$AB$31,0))), INDEX('3. Données'!$C$32:$AB$44,MATCH(D12,'3. Données'!$B$32:$B$44,0),MATCH(TEXT(D10,"0"),'3. Données'!$C$31:$AB$31,0)):INDEX('3. Données'!$C$32:$AB$44,MATCH(D12,'3. Données'!$B$32:$B$44,0),MATCH("2050",'3. Données'!$C$31:$AB$31,0))+(D10+D11-2051)*INDEX('3. Données'!$C$32:$AB$44,MATCH(D12,'3. Données'!$B$32:$B$44,0),MATCH("2050",'3. Données'!$C$31:$AB$31,0))),"0.00") -> 0.00 | D62: =IF(D31="Oui",('3. Données'!C96)*0.0004,0) -> 0 | E62: =D30 -> 0 | F62: =E62*C62 -> 0 | G62: =E62*D62 -> 0 | H62: =G62-F62 -> 0
B63: Production | C63: =IF(D37="Éolienne terrestre",'3. Données'!C52,IF(D37="Solaire PV",'3. Données'!C54)) -> FALSE | D63: =IF(D40="Diesel",('3. Données'!C97)*0.0004,IF(D40="Réseau",'3. Données'!C74)) -> FALSE | E63: =D39 -> 0 | F63: =E63*C63 -> 0 | G63: =E63*D63 -> 0 | H63: =G63-F63 -> 0
B64: Stockage | C64: =IF(D37="Éolienne terrestre",'3. Données'!C52,IF(D37="Solaire PV",'3. Données'!C54)) -> FALSE | D64: =IF(D40="Diesel",('3. Données'!C97)*0.0004,IF(D40="Réseau",'3. Données'!C74)) -> FALSE | E64: =D51 -> 0 | F64: 0 | G64: 0 | H64: 0
B65: TOTAL | C65: - | D65: - | E65: - | F65: =SUM(F62:F64) -> 0 | G65: 0 | H65: 0
E66: Veuillez noter que les émissions calculées ici s’afficheront sous « Directes » dans la feuille 6.
G67: Pourcentage annuel moyen de réduction : | H67: =(H65/G65) -> 

Sheet 2. Détermination de la portée
B2: Approche de quantification
B5: Table des matières
B6: 1. Détermination de la portée des émissions
B7: 2. Définition du scénario du projet
B8: 3. Identification des composantes du projet susceptibles de générer des émissions de GES
B9: 4. Définition du scénario de référence
B10: 5. Identification des composantes du scénario de référence susceptibles de générer des émissions de GES
B13: Détermination de la portée des émissions
B15: Le FIMC reconnaît que, pour certains projets, on peut ne pas être en mesure de quantifier les réductions ou les remplacements directs des émissions en raison de la nature du projet. C’est pourquoi les conseils suivants sont donnés pour remplir ce modèle dans le cadre du programme : 1. Pour les projets de production et de stockage d’énergie, les réductions ou les remplacements des émissions de portée 1 seulement doivent être déclarés au CMIF, mais les demandeurs sont également invités à quantifier les réductions ou les remplacements des émissions de portée 2. 2. Étant donné que les projets d’infrastructure de transport et de distribution, ainsi que les projets déployant d’autres types de technologie, entraînent souvent des réductions ou des remplacements indirects des émissions, plutôt que des réductions ou des remplacements directs, les demandeurs souhaitant déployer ces types de projet doivent quantifier les réductions ou les remplacements des émissions de portée 2 pour être pris en compte dans le cadre du programme.
B17: Le Protocole des GES classe les réductions et les remplacements des émissions selon leur portée :
B19: Émissions de portée 1 [DIRECT] | C19: Émissions directes de GES produites par des sources qu'une organisation possède ou contrôle. Par exemple, les émissions attribuables à l'exploitation et à l'entretien des éoliennes appartenant au demandeur.
B20: Émissions de portée 2 [INDIRECT] | C20: Émissions indirectes de GES liées à l'énergie achetée (électricité, chauffage et climatisation urbains) qui résultent des activités d'une organisation, mais qui se produisent physiquement à des sources détenues ou contrôlées par une autre organisation. Par exemple, les émissions attribuables à la combustion de combustibles fossiles pour chauffer un bâtiment.
B23: Source : | C23: Inventaire des émissions de gaz à effet de serre du gouvernement du Canada - Pièce 7 - Dictionnaire de données pour les ensembles de données de l'inventaire des émissions de gaz à effet de serre
C24: [Document Word]
B26: 1. Définition du scénario du projet
B28: Décrire le projet et la manière dont il permettra de réduire ou de remplacer les émissions de GES. Identifier les risques susceptibles de modifier sensiblement les réductions ou les remplacements des émissions de GES estimés du projet.
B30: 2. Identification des composantes du projet susceptibles de générer des émissions de GES
B32: Veuillez identifier toutes les composantes du projet qui contribueront aux émissions liées au projet en sélectionnant une caractérisation dans la liste déroulante.
B33: Si une composante est censée contribuer aux émissions liées au projet, veuillez décrire la composante, le type de réduction/remplacement des émissions de GES [LISTE DÉROULANTE] et indiquer toutes les hypothèses.
B35: Index des composantes | C35: Catégorie de composante | D35: Caractérisation [Liste déroulante] | E35: Description | F35: Type d’émissions de GES [Liste déroulante] | G35: Hypothèses
B36: P.1. | C36: NOUVELLE installation de production en bloc
B37: P.2. | C37: NOUVELLE infrastructure de transport
B38: P.3. | C38: NOUVELLE infrastructure de distribution
B39: P.4. | C39: NOUVELLES ressources énergétiques distribuées (RED) devant le compteur
B40: P.5. | C40: NOUVELLE installation du client
B41: P.6. | C41: NOUVELLE installation de stockage d’énergie
B42: P.7. | C42: Modernisation des installations de production en bloc existantes
B43: P.8. | C43: Autre
D44: *Une caractérisation doit être sélectionnée pour chaque composante avant de passer à l’étape suivante.
B45: Production d’électricité variable pour les projets déployant une nouvelle installation de production en bloc
B47: Si votre projet vise à déployer une nouvelle installation de production en bloc et si vous prévoyez que la production annuelle d’électricité sera variable, veuillez indiquer la production annuelle prévue en mégawattheures par année (MWh/année) pour chaque année d’exploitation.
B48: Pour les années au cours desquelles le projet ne sera pas en activité, veuillez laisser le champ vide.
B50: Année | C50: Production annuelle d’électricité [MWh/année]
B51: 2025
B52: 2026
B53: 2027
B54: 2028
B55: 2029
B56: 2030
B57: 2031
B58: 2032
B59: 2033
B60: 2034
B61: 2035
B62: 2036
B63: 2037
B64: 2038
B65: 2039
B66: 2040
B67: 2041
B68: 2042
B69: 2043
B70: 2044
B71: 2045
B72: 2046
B73: 2047
B74: 2048
B75: 2049
B76: 2050
B78: 3. Définition du scénario de référence
B80: Décrire le scénario de référence et toutes les émissions de GES associées à ce scénario de référence. Veuillez noter qu’il importe de s’assurer qu’il existe une équivalence fonctionnelle entre le scénario de référence et le projet. L’« équivalence fonctionnelle » signifie que la même fonctionnalité est fournie. *Dans l’élaboration du scénario de référence, le promoteur du projet sélectionne et justifie les hypothèses, les valeurs et les procédures qui assurent que les réductions/remplacements des émissions de GES ou les améliorations de l’élimination ne sont pas surestimés.
B82: 4. Identification des composantes du scénario de référence susceptibles de générer des émissions de GES
B84: Veuillez identifier toutes les composantes du scénario de référence qui produiront des émissions de GES en sélectionnant une caractérisation dans la liste déroulante. Si une composante est censée contribuer aux émissions de référence, veuillez décrire la composante, le type de réduction/remplacement des émissions de GES [LISTE DÉROULANTE] et indiquer toutes les hypothèses.
B86: Index des composantes | C86: Catégorie de composante | D86: Caractérisation [Liste déroulante] | E86: Description | F86: Type de réduction/remplacement des émissions de GES [Liste déroulante] | G86: Hypothèses
B87: R.1. | C87: Installation de production en bloc EXISTANTE | D87: Composante émettrice | F87: Directes
B88: R.2. | C88: Infrastructure de transport EXISTANTE
B89: R.3. | C89: Infrastructure de distribution EXISTANTE
B90: R.4. | C90: Ressources énergétiques distribuées (RED) devant le compteur EXISTANTES
B91: R.5. | C91: Installation du client EXISTANTE
B92: R.6. | C92: Installation de stockage d’énergie EXISTANTE
B93: R.7. | C93: Autre
D94: *Une caractérisation doit être sélectionnée pour chaque composante avant de passer à l’étape suivante.

Sheet 3. Données
B2: Référentiel des facteurs d’émissions
B5: Table des matières
B6: 1. Facteurs d’émission de l’électricité du réseau par province et territoire (sans les émissions de CO2 de la biomasse et du GNR)
B7: 2. Facteurs d’émission du cycle de vie propre à la technologie (NREL)
B8: 3. Facteurs d’émission de la combustion des liquides de gaz naturel
B9: 4. Autres facteurs d’émission de la combustion
B10: 5. Facteurs d’émission de la combustion mobile et du transport de marchandises
B11: 6. Facteurs d’émission de la biomasse
B12: 7. Facteurs de conversion courants
B13: 7.1 Préfixes et équivalents
B14: 7.2 Distance
B15: 7.3 Superficie
B16: 7.4 Volume
B17: 7.5 Poids et masse
B18: 7.6 Kilométrage/millage d’un véhicule
B19: 7.7 Termes liés à l’énergie
B20: 7.8 Gaz naturel liquéfié (GNL)
B23: Facteurs d’émission de l’électricité du réseau par province et territoire (sans les émissions de CO2 de la biomasse et du GNR)
B25: - L’intensité des émissions du réseau correspond au rapport entre les émissions de GES provenant de l’électricité et les ventes régionales d’électricité. Intensité des émissions du réseau = (Émissions de la combustion provenant de la production d’électricité par les fournisseurs d’électricité + Émissions des processus de transport et de distribution d’électricité + (Émissions provenant de la production d’électricité par l’industrie * Électricité vendue par l’industrie aux fournisseurs d’électricité / Électricité produite par l’industrie (autoconsommée et vendue aux fournisseurs d’électricité))) / Électricité vendue par les fournisseurs d’électricité aux consommateurs (y compris l’électricité produite par l’industrie).
B26: - Ces facteurs correspondent au scénario de modélisation des mesures supplémentaires, qui est fondé sur le scénario de référence mais tient également compte des politiques et des mesures en cours d’élaboration et pour lesquelles il existe suffisamment d’information pour qu’elles puissent être modélisées. (Ce scénario a été retenu comme l’estimation la plus prudente.)
B27: - Les flux d’électricité entre les régions sont indirectement pris en compte dans la méthode de calcul, mais les émissions provenant de la production d’électricité sont attribuées à la région où l’électricité a été produite. Ainsi, toutes les importations d’électricité contribuent à réduire l’intensité des émissions du réseau électrique dans la région importatrice, puisque l’électricité importée ne produit pas d’émissions. Au contraire, les régions qui utilisent des combustibles fossiles pour produire de l’électricité ont tendance à augmenter l’intensité des émissions de leur réseau électrique lorsqu’elles exportent de l’électricité, puisque les émissions de l’électricité exportée sont attribuées à la région exportatrice.
B29: Catalogue de données d’Environnement et Changement climatique Canada; intensités des réseaux électriques
B31: Average Grid Intensity Factor (tCO2e/MWh) by Province and Territory | C31: 2025 | D31: 2026 | E31: 2027 | F31: 2028 | G31: 2029 | H31: 2030 | I31: 2031 | J31: 2032 | K31: 2033 | L31: 2034 | M31: 2035 | N31: 2036 | O31: 2037 | P31: 2038 | Q31: 2039 | R31: 2040 | S31: 2041 | T31: 2042 | U31: 2043 | V31: 2044 | W31: 2045 | X31: 2046 | Y31: 2047 | Z31: 2048 | AA31: 2049 | AB31: 2050
B32: Alberta | C32: 0.2652 | D32: 0.2268 | E32: 0.2102 | F32: 0.1721 | G32: 0.165 | H32: 0.1709 | I32: 0.1662 | J32: 0.1539 | K32: 0.145 | L32: 0.1384 | M32: 0.1188 | N32: 0.1065 | O32: 0.1003 | P32: 0.0823 | Q32: 0.0772 | R32: 0.0714 | S32: 0.0699 | T32: 0.0703 | U32: 0.0709 | V32: 0.0715 | W32: 0.0716 | X32: 0.0706 | Y32: 0.0703 | Z32: 0.0686 | AA32: 0.0439 | AB32: 0.0192
B33: Colombie-Britannique | C33: 0.0053 | D33: 0.0042 | E33: 0.0039 | F33: 0.0037 | G33: 0.0015 | H33: 0.0014 | I33: 0.0014 | J33: 0.0013 | K33: 0.0012 | L33: 0.0011 | M33: 0.001 | N33: 0.0006 | O33: 0.0006 | P33: 0.0005 | Q33: 0.0005 | R33: 0.0005 | S33: 0.0001 | T33: 0.0001 | U33: 0.0001 | V33: 0.0001 | W33: 0.0001 | X33: 0.0001 | Y33: 0.0001 | Z33: 0.0001 | AA33: 0.0001 | AB33: 0.0001
B34: Manitoba | C34: 0.0005 | D34: 0.0007 | E34: 0.0007 | F34: 0.0007 | G34: 0.0007 | H34: 0.0007 | I34: 0.0007 | J34: 0.0007 | K34: 0.0007 | L34: 0.0007 | M34: 0.0007 | N34: 0.0007 | O34: 0.0007 | P34: 0.0007 | Q34: 0.0006 | R34: 0.0006 | S34: 0.0006 | T34: 0.0006 | U34: 0.0006 | V34: 0.0006 | W34: 0.0006 | X34: 0.0006 | Y34: 0.0006 | Z34: 0.0006 | AA34: 0.0006 | AB34: 0.0006
B35: Nouveau-Brunswick | C35: 0.3191 | D35: 0.306 | E35: 0.2781 | F35: 0.2661 | G35: 0.252 | H35: 0.037 | I35: 0.0318 | J35: 0.0248 | K35: 0.0291 | L35: 0.029 | M35: 0.0469 | N35: 0.0522 | O35: 0.065 | P35: 0.0644 | Q35: 0.0278 | R35: 0.0277 | S35: 0.0029 | T35: 0.0025 | U35: 0.0025 | V35: 0.0024 | W35: 0.0019 | X35: 0.0143 | Y35: 0.0125 | Z35: 0.0106 | AA35: 0.0012 | AB35: 0.0009
B36: Terre-Neuve-et-Labrador | C36: 0.0063 | D36: 0.0062 | E36: 0.006 | F36: 0.0058 | G36: 0.0064 | H36: 0.0056 | I36: 0.0055 | J36: 0.0053 | K36: 0.0052 | L36: 0.0051 | M36: 0.005 | N36: 0.0048 | O36: 0.005 | P36: 0.0053 | Q36: 0.0053 | R36: 0.0052 | S36: 0.0051 | T36: 0.0049 | U36: 0.0045 | V36: 0.0042 | W36: 0.0042 | X36: 0.0041 | Y36: 0.0041 | Z36: 0.004 | AA36: 0.004 | AB36: 0.0039
B37: Territoires du Nord-Ouest | C37: 0.001 | D37: 0 | E37: 0 | F37: 0.0052 | G37: 0.0046 | H37: 0.0041 | I37: 0 | J37: 0 | K37: 0 | L37: 0 | M37: 0 | N37: 0 | O37: 0 | P37: 0 | Q37: 0 | R37: 0 | S37: 0 | T37: 0 | U37: 0 | V37: 0 | W37: 0 | X37: 0 | Y37: 0 | Z37: 0 | AA37: 0 | AB37: 0
B38: Nouvelle-Écosse | C38: 0.5298 | D38: 0.4779 | E38: 0.4619 | F38: 0.4481 | G38: 0.3039 | H38: 0.0882 | I38: 0.0897 | J38: 0.112 | K38: 0.105 | L38: 0.0984 | M38: 0.0706 | N38: 0.0667 | O38: 0.0632 | P38: 0.0605 | Q38: 0.059 | R38: 0.0572 | S38: 0.0554 | T38: 0.0467 | U38: 0.0459 | V38: 0.0633 | W38: 0.0602 | X38: 0.0571 | Y38: 0.0537 | Z38: 0.0503 | AA38: 0.0471 | AB38: 0.0386
B39: Nunavut | C39: 0.4944 | D39: 0.4566 | E39: 0.4429 | F39: 0.4442 | G39: 0.4569 | H39: 0.4543 | I39: 0.4667 | J39: 0.4107 | K39: 0.425 | L39: 0.449 | M39: 0.401 | N39: 0.4114 | O39: 0.4239 | P39: 0.3781 | Q39: 0.3893 | R39: 0.4034 | S39: 0.3612 | T39: 0.3739 | U39: 0.3392 | V39: 0.3043 | W39: 0.3187 | X39: 0.2889 | Y39: 0.2577 | Z39: 0.2679 | AA39: 0.2374 | AB39: 0.2087
B40: Ontario | C40: 0.0653 | D40: 0.0761 | E40: 0.0569 | F40: 0.0504 | G40: 0.05 | H40: 0.065 | I40: 0.0559 | J40: 0.0658 | K40: 0.0684 | L40: 0.0761 | M40: 0.0305 | N40: 0.0233 | O40: 0.0191 | P40: 0.0136 | Q40: 0.0107 | R40: 0.0131 | S40: 0.0129 | T40: 0.0119 | U40: 0.0117 | V40: 0.0115 | W40: 0.014 | X40: 0.0138 | Y40: 0.0136 | Z40: 0.0134 | AA40: 0.0125 | AB40: 0.0034
B41: Île‑du‑Prince‑Édouard | C41: 0.0008 | D41: 0.0008 | E41: 0.0008 | F41: 0.0008 | G41: 0.0008 | H41: 0.0008 | I41: 0.0008 | J41: 0.0008 | K41: 0.0007 | L41: 0.0007 | M41: 0.0007 | N41: 0.0007 | O41: 0.0007 | P41: 0.0006 | Q41: 0.0006 | R41: 0.0006 | S41: 0.0006 | T41: 0.0006 | U41: 0.0006 | V41: 0.0006 | W41: 0.0006 | X41: 0.0005 | Y41: 0.0005 | Z41: 0.0005 | AA41: 0.0005 | AB41: 0.0005
B42: Québec | C42: 0 | D42: 0 | E42: 0 | F42: 0 | G42: 0 | H42: 0 | I42: 0 | J42: 0 | K42: 0 | L42: 0 | M42: 0 | N42: 0 | O42: 0 | P42: 0 | Q42: 0 | R42: 0 | S42: 0 | T42: 0 | U42: 0 | V42: 0 | W42: 0 | X42: 0 | Y42: 0 | Z42: 0 | AA42: 0 | AB42: 0
B43: Saskatchewan | C43: 0.5229 | D43: 0.5153 | E43: 0.4994 | F43: 0.3412 | G43: 0.3308 | H43: 0.1153 | I43: 0.1171 | J43: 0.1086 | K43: 0.1043 | L43: 0.1003 | M43: 0.0487 | N43: 0.0404 | O43: 0.037 | P43: 0.0349 | Q43: 0.0524 | R43: 0.0586 | S43: 0.0626 | T43: 0.0576 | U43: 0.0532 | V43: 0.0408 | W43: 0.0238 | X43: 0.0232 | Y43: 0.0229 | Z43: 0.0223 | AA43: 0.0218 | AB43: 0.0126
B44: Yukon | C44: 0.007 | D44: 0.0069 | E44: 0.0068 | F44: 0.007 | G44: 0.0083 | H44: 0.0102 | I44: 0.0419 | J44: 0.048 | K44: 0.0521 | L44: 0.0523 | M44: 0.0589 | N44: 0.0574 | O44: 0.0552 | P44: 0.0532 | Q44: 0.0523 | R44: 0.0463 | S44: 0.0298 | T44: 0.0287 | U44: 0.0273 | V44: 0.0252 | W44: 0.0245 | X44: 0.0246 | Y44: 0.0285 | Z44: 0.0272 | AA44: 0.0273 | AB44: 0.0276
B47: Facteurs d’émission du cycle de vie propre à la technologie (NREL)
B49: National Renewable Energy Laboratory; Life Cycle Emissions Factors for Electricity Generation Technologies (Facteurs d’émission du cycle de vie des technologies de production d’électricité)
B51: Generation Technology | C51: Life Cycle Emission Factor [tCO2e/MWh]
B52: Éolienne terrestre | C52: 0.012
B53: Éolienne en mer | C53: 0.019
B54: Solaire PV | C54: 0.04889
B55: Énergie solaire à concentration (cylindro-parabolique) | C55: 0.026
B56: Énergie solaire à concentration (centrale à tour) | C56: 0.038
B57: Énergie solaire à concentration (parabolique) | C57: 0.015
B58: Hydroélectricité (réservoir) | C58: 0.013
B59: Hydroélectricité (au fil de l’eau) | C59: 0.023
B60: Géothermie (EGS binaire) | C60: 0.032
B61: Géothermie (HT flash) | C61: 0.047
B62: Géothermie (HT binaire) | C62: 0.011
B63: Océans | C63: 0.008
B64: Bioénergie (cocombustion) | C64: 0.17
B65: Bioénergie (combustion directe) | C65: 0.042
B66: Bioénergie (gazéification) | C66: 0.04
B67: Bioénergie (moteur de gazéification) | C67: 0.095
B68: Hydroélectricité à réserve pompée | C68: 0.0074
B69: Cycle combiné au gaz naturel (CCGN) | C69: 0.45
B70: Turbine à combustion alimentée au gaz naturel | C70: 0.6045
B71: Cycle combiné au gaz naturel avec captage et stockage du carbone (CCGN-CCS) | C71: 0.111
B72: Cycle combiné au gaz naturel liquéfié | C72: 0.501
B73: Turbine à combustion alimentée au gaz naturel liquéfié | C73: 0.651
B74: Gaz naturel (non précisé) | C74: 0.3985
B77: Facteurs d’émission de la combustion des liquides de gaz naturel
B78: Veuillez noter les unités dans lesquelles ces facteurs d'émission sont exprimés. Une conversion d'unités peut être nécessaire.
B79: Rapport d’inventaire national 1990-2022 : sources et puits de gaz à effet de serre au Canada [partie 2]
B81: Liquid | C81: CO2e Emission Factor (gCO2e/L)
B82: Propane
B83: Résidentiel | C83: 1544.376
B84: Tous les autres usages | C84: 1544.292
B85: Éthane | C85: 1015.292
B86: Butane | C86: 1776.292
B89: Autres facteurs d’émission de la combustion
B90: Veuillez noter les unités dans lesquelles ces facteurs d'émission sont exprimés. Une conversion d'unités peut être nécessaire.
B91: Rapport d’inventaire national 1990-2022 : sources et puits de gaz à effet de serre au Canada [partie 2]
B93: Liquid | C93: CO2e Emission Factor (gCO2e/L)
B94: Mazout léger
B95: Fournisseurs d’électricité | C95: 2766.255
B96: Industriel | C96: 2761.383
B97: Consommation des producteurs | C97: 2678.383
B98: Résidentiel | C98: 2755.318
B99: Foresterie, construction, commercial/institutionnel, autre | C99: 2761.943
B100: Mazout lourd
B101: Fournisseurs d’électricité | C101: 3173.912
B102: Industriel | C102: 3176.32
B103: Consommation des producteurs | C103: 3210.32
B104: Foresterie, construction, commercial/institutionnel, autre | C104: 3174.556
B105: Kérosène
B106: Fournisseurs d’électricité | C106: 2568.383
B107: Industriel | C107: 2568.383
B108: Consommation des producteurs | C108: 2568.383
B109: Résidentiel | C109: 2562.318
B110: Foresterie, construction, commercial/institutionnel, autre | C110: 2568.943
B111: Diesel - Raffineries et autres | C111: 2689.014
B112: Diesel - Améliorations | C112: 2689.014
B113: Coke de pétrole - Installations de valorisation | C113: 3503.72
B114: Coke de pétrole - Raffineries et autres | C114: 3836.6475
B115: Gaz de distillation - Raffineries et autres | C115: 2.9963
B116: Gaz de distillation - Améliorations | C116: 2.146392
B117: Essence automobile | C117: 2315.1
B120: Facteurs d’émission de la combustion mobile et du transport de marchandises
B121: Veuillez noter les unités dans lesquelles ces facteurs d'émission sont exprimés. Une conversion d'unités peut être nécessaire.
B122: Rapport d’inventaire national 1990-2022 : sources et puits de gaz à effet de serre au Canada [partie 2]
B124: Mode of Transportation | C124: CO2e Emission Factor (g/L)
B125: Transport routier
B126: Véhicules à essence
B127: Véhicules légers à essence (VLE)
B128: Niveau 3 | C128: 2312.263 | D128: *Niveau 3 Années modèles 2017 et ultérieures. Les normes sont conçues pour réduire les émissions d’échappement et par évaporation et visent à réduire de manière significative les émissions d’hydrocarbures (HC), de monoxyde de carbone (CO), d’oxydes d’azote (NOx) et de matières particulaires (MP).
B129: Niveau 2 | C129: 2317.041008 | D129: *Niveau 2 Années modèles 2004-2016. Les normes exigeaient l’utilisation de carburants moins polluants et visaient à réduire les émissions d’hydrocarbures (HC), de monoxyde de carbone (CO), d’oxydes d’azote (NOx) et de matières particulaires (MP).
B130: Niveau 1 | C130: 2439.084136 | D130: *Niveau 1 Années modèles 1994-2003. Les normes étaient axées sur la réduction des polluants, notamment les hydrocarbures (HC), le monoxyde de carbone (CO), les oxydes d’azote (NOx) et les matières particulaires (MP).
B131: Niveau 0 | C131: 2491.16 | D131: *Niveau 0 Années modèles 1981-1993. Les normes étaient axées sur la réduction des émissions d’hydrocarbures (HC), de monoxyde de carbone (CO) et d’oxydes d’azote (NOx), jetant les bases de niveaux subséquents plus stricts.
B132: Convertisseur catalytique d’oxydation | C132: 2374.86
B133: Système sans catalyseur | C133: 2327.6
B134: Camions légers à essence (CLE)
B135: Niveau 3 | C135: 2312.263 | D135: *Niveau 3 Années modèles 2017 et ultérieures. Les normes sont conçues pour réduire les émissions d’échappement et par évaporation et visent à réduire de manière significative les émissions d’hydrocarbures (HC), de monoxyde de carbone (CO), d’oxydes d’azote (NOx) et de matières particulaires (MP).
B136: Niveau 2 | C136: 2317.041008 | D136: *Niveau 2 Années modèles 2004-2016. Les normes exigeaient l’utilisation de carburants moins polluants et visaient à réduire les émissions d’hydrocarbures (HC), de monoxyde de carbone (CO), d’oxydes d’azote (NOx) et de matières particulaires (MP).
B137: Niveau 1 | C137: 2468.673583 | D137: *Niveau 1 Années modèles 1994-2003. Les normes étaient axées sur la réduction des polluants, notamment les hydrocarbures (HC), le monoxyde de carbone (CO), les oxydes d’azote (NOx) et les matières particulaires (MP).
B138: Niveau 0 | C138: 2488.08 | D138: *Niveau 0 Années modèles 1981-1993. Les normes étaient axées sur la réduction des émissions d’hydrocarbures (HC), de monoxyde de carbone (CO) et d’oxydes d’azote (NOx), jetant les bases de niveaux subséquents plus stricts.
B139: Convertisseur catalytique d’oxydation | C139: 2372.34
B140: Système sans catalyseur | C140: 2330.4
B141: Véhicules lourds à essence
B142: Catalyseur à trois voies | C142: 2362.204
B143: Système sans catalyseur | C143: 2327.875
B144: Sans dispositif | C144: 2343.28
B145: Motocyclettes
B146: Système sans catalyseur | C146: 2339.753
B147: Sans dispositif | C147: 2384.42
B148: Véhicules à moteur diesel
B149: Véhicules légers à moteur diesel (VLMD)
B150: Dispositif perfectionné | C150: 2740.228
B151: Dispositif à efficacité modérée | C151: 2738.054
B152: Sans dispositif | C152: 2725.7
B153: Camions légers à moteur diesel (CLMD)
B154: Dispositif perfectionné | C154: 2740.704
B155: Dispositif à efficacité modérée | C155: 2738.054
B156: Sans dispositif | C156: 2725.28
B157: Véhicules lourds à moteur diesel
B158: Dispositif perfectionné | C158: 2723.595
B159: Dispositif à efficacité modérée | C159: 2706.15
B160: Sans dispositif | C160: 2704.575
B161: Véhicules au gaz naturel | C161: 2.1623
B162: Véhicules au propane | C162: 1540.34
B163: Véhicules hors route
B164: Véhicules hors route à essence 2 temps | C164: 2606.3826
B165: Véhicules hors route à essence 4 temps | C165: 2466.623
B166: Véhicules hors route à moteur diesel < 19kW | C166: 2688.420115
B167: Véhicules hors route à moteur diesel ≥ 19kW, niveau 1-3 | C167: 2688.420115
B168: Véhicules hors route à moteur diesel ≥ 19kW, niveau 4 | C168: 2742.597444
B169: Véhicules hors route à huile de graissage 2 temps | C169: 3064.56
B170: Véhicules hors route au gaz naturel | C170: 2.1623
B171: Véhicules hors route au propane | C171: 1556.02184
B172: Locomotives alimentées au diesel | C172: 2957.357
B173: Transport maritime
B174: Essence | C174: 2330.04558
B175: Diesel | C175: 2706.62874
B176: Mazout léger | C176: 2779.499
B177: Mazout lourd | C177: 3185.6208
B178: Kérosène | C178: 2585.3278
B179: Transport aérien
B180: Essence | C180: 2447.67
B181: Carburéacteur | C181: 2579.0455
B182: Carburants renouvelables
B183: Éthanol | C183: 1517.79
B184: Biodiesel | C184: 2515.295
B187: GHGenius v5.0d
B188: Veuillez noter les unités dans lesquelles ces facteurs d'émission sont exprimés. Une conversion d'unités peut être nécessaire.
B189: Ces facteurs d’émission peuvent être utilisés lorsque le volume de carburant consommé est inconnu mais la distance parcourue est connue.
B191: Mode of Transportation | C191: CO2e Emission Factor (g-CO2e/km)
B192: Véhicules utilitaires légers
B193: Essence | C193: 170.5858835
B194: Hybride à essence | C194: 105.4249307
B195: Gaz naturel | C195: 143.657278
B196: Propane | C196: 149.2313455
B197: Diesel | C197: 163.5340034
B198: E10 | C198: 164.9727068
B199: Véhicules lourds
B200: Diesel | C200: 1105.895709
B201: Essence | C201: 1340.868042
B202: Gaz naturel | C202: 975.2781249
B203: GNL / diesel (95/5) | C203: 856.6117271
B206: Facteurs d’émission de la biomasse
B207: Veuillez noter les unités dans lesquelles ces facteurs d'émission sont exprimés. Une conversion d'unités peut être nécessaire.
B208: Rapport d’inventaire national 1990-2022 : sources et puits de gaz à effet de serre au Canada [partie 2]
B210: Source | C210: Description | D210: Emission Factor (CO2) [g/kg fuel] | E210: Emission Factor (CH4) [g/kg fuel] | F210: Emission Factor (N2O) [g/kg fuel]
B211: Bois de chauffage / déchets de bois | C211: Combustion industrielle | D211: 1715 | E211: 0.1 | F211: 0.07
B212: Feux de forêt | C212: Combustion à l’air libre | D212: S.O. | E212: S.O. | F212: S.O.
B213: Brûlage dirigé | C213: Combustion à l’air libre | D213: S.O. | E213: S.O. | F213: S.O.
B214: Liqueur résiduaire | C214: Combustion industrielle | D214: 1250 | E214: 0.03 | F214: 0.005
B215: Poêles et foyers | C215: Combustion domestique
B216: Poêles classiques | D216: 1539 | E216: 12.9 | F216: 0.12
B217: Foyers classiques avec unité encastrée | D217: 1539 | E217: 12.9 | F217: 0.12
B218: Poêles et foyers perfectionnés; systèmes antipollution catalytiques | D218: 1539 | E218: 5.9 | F218: 0.12
B219: Poêles à granules | D219: 1652 | E219: 4.12 | F219: 0.059
B220: Autres dispositifs de combustion du bois | D220: 1539 | E220: 4.12 | F220: 0.059
B222: Remarques :
B224: - S.O. = Sans objet
B225: - Les émissions de CO2 résultant de la biomasse brûlée à des fins énergétiques ou agricoles ne sont pas comprises dans les totaux de l’inventaire, tandis que les émissions de CH4 et de N2O de ces mêmes sources sont inventoriées dans le secteur de l’énergie. Toutes les émissions de gaz à effet de serre (GES), notamment de CO2, résultant de la biomasse brûlée dans les forêts aménagées (feux de végétation et brûlage dirigé), sont déclarées dans le secteur Affectation des terres, changements d’affectation des terres et foresterie (ATCATF) et sont exclues des totaux de l’inventaire national.
B228: Facteurs de conversion courants
B230: Tables de conversion d’unités d’énergie - Régie de l’énergie du Canada
B232: Préfixes et équivalents
B234: Prefixes | C234: Equivalents
... 145 more rows

Sheet 4. Exemples
B2: Exemples de calcul
B5: Table des matières
B6: 1. Projets de production
B7: 1.1 Example no 1 : Éolien
B8: 1.2 Example no 2 : Solaire PV
B9: 1.3 Example no 3 : Solaire PV + Stockage d’énergie
B10: 2. Projets de stockage d’énergie
B11: 2.1 Example no 1 : Arbitrage énergétique
B12: 2.2 Example no 2 : Écrêtement des pointes en Ontario
B13: 2.3 Example no 3 : Stockage d'énergie pour la régulation rapide de la fréquence du réseau en Alberta
B14: 4. Projets de transport
B15: 4.1 Example no 1 : Mise à niveau d'une ligne de transmission d'une installation existante
B19: Projets de production | P19: Projets de stockage d’énergie | AD19: Projets d’infrastructure de transport
B23: Exemple no 1 : Éolien | P23: Exemple no 1 : Arbitrage énergétique Nouvelle-Écosse | AD23: Exemple no 1 : Mise à niveau d'une ligne de transmission d'une installation existante
B25: Description : | P25: Description : | AD25: Description :
B26: Cet exemple quantifie les réductions annuelles de GES attendues d’un nouveau parc éolien en Alberta. | P26: Dans cet exemple, un système de stockage d'énergie est utilisé pour l’arbitrage énergétique en Nouvelle-Écosse. | AD26: Dans cet exemple, une installation industrielle existante utilise actuellement une ligne de distribution pour fournir 40 000 MWh par an. Sa demande annuelle en énergie devrait augmenter de 500 000 MWh en 2028, pour un total de 540 000 MWh. Son exploitation prendra fin en 2043. Le projet propose de démanteler la ligne de distribution existante et de construire une nouvelle ligne de transmission pour la remplacer et répondre à la demande énergétique actuelle et prévue. Sans cette ligne de transmission proposée, l'installation utiliserait des générateurs diesel pour répondre à la demande accrue.
B29: Projet | H29: Référence | P29: Projet | V29: Référence | AD29: Projet | AJ29: Référence
B32: Veuillez sélectionner la composante dans la liste déroulante ci-dessous : | H32: Veuillez sélectionner la composante dans la liste déroulante ci-dessous : | P32: Veuillez sélectionner la composante dans la liste déroulante ci-dessous : | V32: Veuillez sélectionner la composante dans la liste déroulante ci-dessous : | AD32: Veuillez sélectionner la composante dans la liste déroulante ci-dessous : | AJ32: Veuillez sélectionner la composante dans la liste déroulante ci-dessous :
B33: NOUVELLE installation de production en bloc | D33: Type de réduction/remplacement : | E33: Directes | H33: Installation de production en bloc EXISTANTE | J33: Type de réduction/remplacement : | K33: Directes | P33: NOUVELLE installation de stockage d’énergie | R33: Type de réduction/remplacement : | S33: Directes | V33: Installation de production en bloc EXISTANTE | X33: Type de réduction/remplacement : | Y33: Directes | AD33: NOUVELLE infrastructure de transport | AF33: Type de réduction/remplacement : | AG33: Indirectes | AJ33: Autre | AL33: Type de réduction/remplacement : | AM33: Indirectes
B34: P.1. | H34: R.1. | P34: P.6. | V34: R.1. | AD34: P.2. | AJ34: R.7.
B36: Parameter | C36: Value | D36: Unit | E36: Notes | H36: Parameter | I36: Value | J36: Unit | K36: Notes | P36: Parameter | Q36: Value | R36: Unit | S36: Notes | V36: Parameter | W36: Value | X36: Unit | Y36: Notes | AD36: Parameter | AE36: Value | AF36: Unit | AG36: Notes | AJ36: Parameter | AK36: Value | AL36: Unit | AM36: Notes
B37: Quantité d’électricité produite par la nouvelle éolienne | C37: 84000000 | D37: kWh/année | E37: Facteur de capacité de 37,5 % | H37: Quantité d’électricité produite par la nouvelle éolienne | I37: 84000000 | J37: kWh/année | K37: *En supposant que la nouvelle production d’électricité remplacera un volume équivalent de production au gaz naturel comme ressource marginale. | P37: Capacité énergétique des batteries | Q37: 250 | R37: MWh | V37: Efficacité aller-retour | W37: 90 | X37: % | AD37: Quantité d'électricité consommée sur le réseau du Yukon via une nouvelle ligne de transmission | AE37: 540000000 | AF37: kWh/année | AJ37: Quantité d'électricité consommée à partir du réseau du Yukon via la ligne de distribution existante | AK37: 40000000 | AL37: kWh/année
B38: Conversion de l’unité | C38: =C37/1000 -> 84000 | D38: MWh/année | H38: Conversion de l’unité | I38: =I37/1000 -> 84000 | J38: MWh/année | P38: Durée de stockage dans des batteries | Q38: 4 | R38: heures | V38: Électricité remplacée par la décharge des batteries | W38: 22500 | X38: MWh/année | AD38: Conversion de l'unité | AE38: =AE37/1000 -> 540000 | AF38: MWh/année | AJ38: Conversion d'unités | AK38: =AK37/1000 -> 40000 | AL38: MWh/année
P39: Cycles prévus par année | Q39: 100 | R39: cycles/année
P40: Capacité de stockage globale par année | Q40: =Q37*Q39 -> 25000 | R40: MWh/année
B43: *Ajouter des paramètres au besoin | H43: *Ajouter des paramètres au besoin | P43: *Ajouter des paramètres au besoin | V43: *Ajouter des paramètres au besoin | AD43: *Ajouter des paramètres au besoin | AJ43: *Ajouter des paramètres au besoin
E44: Description du FE | K44: Description du FE | S44: Description du FE | Y44: Description du FE | AG44: Description du FE | AM44: Description du FE
B45: Facteur d’émission (FE) | C45: 0.012 | D45: téq CO2/MWh | E45: Facteur d’émission sur le cycle de vie pour les projets d’éolienne terrestre | H45: Facteur d’émission (FE) | I45: 0.3985 | J45: téq CO2/MWh | K45: Facteur d’émission sur le cycle de vie pour le gaz naturel (non précisé) | P45: Facteur d’émission (FE) | Q45: =AVERAGE('3. Données'!D38:N38) -> 0.2111272727 | R45: téq CO2/MWh | S45: Facteur d'intensité moyen du réseau pour la Nouvelle-Écosse sur la durée de vie du système (2026-2036). Il s'agit d'une estimation prudente, car la batterie est chargée pendant les périodes de faible demande, lorsque l'intensité réelle des émissions du réseau est susceptible d'être plus faible. | V45: Facteur d’émission (FE) | W45: 0.3985 | X45: téq CO2/MWh | Y45: Facteur d'émission du cycle de vie pour le gaz naturel (non spécifié), en supposant que l'électricité dans la batterie remplacera une quantité équivalente d'électricité produite par le gaz naturel, en tant que ressource marginale pendant les périodes de pointe. | AD45: Facteur d’émission (FE) | AE45: =AVERAGE('3. Données'!F44:U44) -> 0.03930625 | AF45: téq CO2/MWh | AG45: Facteur d'émission de 2028 à 2043 au Yukon. | AJ45: Facteur d’émission (FE) | AK45: =AVERAGE('3. Données'!F44:U44) -> 0.03930625 | AL45: téq CO2/MWh | AM45: Facteur d'émission de 2028 à 2043 au Yukon.
B47: Émissions (annuelles) | C47: =C38*C45 -> 1008 | D47: téq CO2/année | H47: Émissions (annuelles) | I47: =I38*I45 -> 33474 | J47: téq CO2/année | P47: Émissions (annuelles) | Q47: =Q45*Q40 -> 5278.181818 | R47: téq CO2/année | V47: Émissions (annuelles) | W47: =W38*W45 -> 8966.25 | X47: téq CO2/année | AD47: Émissions (annuelles) | AE47: =AE45*AE38 -> 21225.375 | AF47: téq CO2/année | AJ47: Émissions (annuelles) | AK47: =AK38*AK45 -> 1572.25 | AL47: téq CO2/année
B50: DIRECTES : | H50: DIRECTES : | P50: DIRECTES : | V50: DIRECTES : | AD50: Veuillez sélectionner la composante dans la liste déroulante ci-dessous : | AJ50: Veuillez sélectionner la composante dans la liste déroulante ci-dessous :
B51: Total des émissions du projet (annuelles) : | C51: =SUMIF(E33,"Directes",C47) -> 1008 | D51: téq CO2/année | H51: Total des émissions de référence (annuelles) : | I51: =SUMIF(K33,"Directes",I47) -> 33474 | J51: téq CO2/année | P51: Total des émissions du projet (annuelles) : | Q51: =Q47 -> 5278.181818 | R51: téq CO2/année | V51: Total des émissions de référence (annuelles) : | W51: =W47 -> 8966.25 | X51: téq CO2/année | AD51: NOUVELLE infrastructure de transport | AF51: Type de réduction/remplacement : | AG51: Indirectes | AJ51: Installation de production en bloc EXISTANTE | AL51: Type de réduction/remplacement : | AM51: Directes
AD52: P.2. | AJ52: R.7.
B53: INDIRECTES : | H53: INDIRECTES : | P53: INDIRECTES : | V53: INDIRECTES :
B54: Total des émissions du projet (annuelles) : | C54: =SUMIF(E33,"Indirect",C47) -> 0 | D54: téq CO2/année | H54: Total des émissions de référence (annuelles) : | I54: =SUMIF(K33,"Indirect",I47) -> 0 | J54: téq CO2/année | P54: Total des émissions du projet (annuelles) : | Q54: =SUMIF(S33,"Indirect",Q47) -> 0 | R54: téq CO2/année | V54: Total des émissions de référence (annuelles) : | W54: =SUMIF(Y33,"Indirect",W47) -> 0 | X54: téq CO2/année | AD54: Parameter | AE54: Value | AF54: Unit | AG54: Notes | AJ54: Parameter | AK54: Value | AL54: Unit | AM54: Notes
AJ55: Quantité d'électricité produite par les générateurs diesel | AK55: 500000 | AL55: MWh/année | AM55: Augmentation de la demande d'électricité à partir de 2028
AJ56: Conversion d'unités | AK56: =AK55*1000 -> 500000000 | AL56: kWh/année | AM56: Converti en kWh/an. 1 MWh = 1000 kWh
AJ57: Conversion d'unités | AK57: =AK56*0.4 -> 200000000 | AL57: L/année | AM57: Converti en L/an. Supposant 1 kWh pour 0,4 L de diesel
AJ58: Facteur d'émission pour le mazout léger | AK58: ='3. Données'!C96 -> 2761.383 | AL58: g éq CO2/L | AM58: À partir d'autres facteurs d'émission de combustion, fioul léger - industriel ('3. Data'!C96).
B59: Exemple no 2 : Solaire PV | P59: Exemple no 2 : Écrêtement des pointes en Ontario | AJ59: Conversion d'unités | AK59: =AK58*10^-6 -> 0.002761383 | AL59: téq CO2/L | AM59: Ce FE est donné en gCO2e/L, il est donc divisé par 10^6 pour être converti en tCO2e/L
B61: Description : | P61: Description : | AD61: *Ajouter des paramètres au besoin | AJ61: *Ajouter des paramètres au besoin
B62: Cet exemple quantifie les réductions annuelles de GES attendues d’une nouvelle centrale solaire photovoltaïque en Alberta. | P62: Cet exemple concerne un système de stockage à l’échelle d’un service public pour l’écrêtement des pointes en Ontario de 2026 à 2036. | AG62: Description du FE | AM62: Description du FE
AD63: Facteur d’émission (FE) | AF63: téq CO2/MWh | AJ63: Facteur d’émission (FE) | AK63: =AK59 -> 0.002761383 | AL63: téq CO2/L | AM63: Tel que décrit ci-dessus
B65: Projet | H65: Référence | P65: Projet | V65: Référence | AD65: Émissions (annuelles) | AE65: =AE60*AE63 -> 0 | AF65: téq CO2/année | AJ65: Émissions (annuelles) | AK65: =AK63*AK57 -> 552276.6 | AL65: téq CO2/année
B68: Veuillez sélectionner la composante dans la liste déroulante ci-dessous : | H68: Veuillez sélectionner la composante dans la liste déroulante ci-dessous : | P68: Veuillez sélectionner la composante dans la liste déroulante ci-dessous : | V68: Veuillez sélectionner la composante dans la liste déroulante ci-dessous : | AD68: DIRECTES : | AJ68: DIRECTES :
B69: NOUVELLE installation de production en bloc | D69: Type de réduction/remplacement : | E69: Directes | H69: Installation de production en bloc EXISTANTE | J69: Type de réduction/remplacement : | K69: Directes | P69: NOUVELLE installation de stockage d’énergie | R69: Type de réduction/remplacement : | S69: Directes | V69: Installation de production en bloc EXISTANTE | X69: Type de réduction/remplacement : | Y69: Directes | AD69: Total des émissions du projet (annuelles) : | AE69: =SUMIF(AG51,"Direct",AE65) -> 0 | AF69: téq CO2/année | AJ69: Total des émissions de référence (annuelles) : | AK69: =SUMIF(AM51,"Directes",AK65) -> 552276.6 | AL69: téq CO2/année
B70: P.1. | H70: R.1. | P70: P.6. | V70: R.1.
AD71: INDIRECTES : | AJ71: INDIRECTES :
B72: Parameter | C72: Value | D72: Unit | E72: Notes | H72: Parameter | I72: Value | J72: Unit | K72: Notes | P72: Parameter | Q72: Value | R72: Unit | S72: Notes | V72: Parameter | W72: Value | X72: Unit | Y72: Notes | AD72: Total des émissions du projet (annuelles) : | AE72: =AE47 -> 21225.375 | AF72: téq CO2/année | AJ72: Total des émissions de référence (annuelles) : | AK72: =SUMIF(AM33,"Indirectes",AK47) -> 1572.25 | AL72: téq CO2/année
B73: Quantité d’électricité produite par la nouvelle centrale solaire | C73: 25000000 | D73: kWh/année | E73: Facteur de capacité de 37,5 % | H73: Quantité d’électricité produite par la nouvelle centrale solaire | I73: 25000000 | J73: kWh/année | K73: *En supposant que la nouvelle production d’électricité remplacera un volume équivalent de production au gaz naturel comme ressource marginale. | P73: Capacité énergétique de la batterie | Q73: 800 | R73: MWh | V73: Efficacité aller-retour | W73: 86 | X73: %
B74: Conversion de l’unité | C74: =C73/1000 -> 25000 | D74: MWh/année | H74: Conversion de l’unité | I74: =I73/1000 -> 25000 | J74: MWh/année | P74: Durée de stockage dans des batteries | Q74: 4 | R74: heures | V74: Électricité remplacée par la décharge des batteries | W74: =Q78*W73/100 -> 184946.2366 | X74: MWh/année | Y74: *En supposant que l’électricité stockée dans les batteries remplace une quantité équivalente d’électricité produite au gaz naturel comme ressource marginale pendant les périodes de pointe.
P75: Cycles prévus par année | Q75: 250 | R75: cycles/année
P76: Capacité de stockage globale par année | Q76: =Q73*Q75 -> 200000 | R76: MWh/année
P77: Efficacité de charge | Q77: 93 | R77: %
P78: Électricité consommée pour la charge des batteries | Q78: =Q76/Q77*100 -> 215053.7634 | R78: MWh/année
B79: *Ajouter des paramètres au besoin | H79: *Ajouter des paramètres au besoin | P79: *Ajouter des paramètres au besoin | V79: *Ajouter des paramètres au besoin
E80: Description du FE | K80: Description du FE | S80: Description du FE | Y80: Description du FE
B81: Facteur d’émission (FE) | C81: ='3. Données'!C54 -> 0.04889 | D81: téq CO2/MWh | E81: Facteur d’émission sur le cycle de vie pour les projets d’éolienne terrestre | H81: Facteur d’émission (FE) | I81: 0.3985 | J81: téq CO2/MWh | K81: Facteur d’émission sur le cycle de vie pour le gaz naturel (non précisé) | P81: Facteur d’émission (FE) | Q81: =AVERAGE('3. Données'!D40:N40) -> 0.05621818182 | R81: téq CO2/MWh | S81: Facteur d'intensité moyen du réseau pour l'Ontario sur la durée de vie du BESS (2026-2036). Il s'agit d'une estimation prudente, car la batterie est chargée pendant les périodes de faible demande, lorsque l'intensité réelle des émissions du réseau est susceptible d'être plus faible. | V81: Facteur d’émission (FE) | W81: 0.3985 | X81: téq CO2/MWh | Y81: Facteur d’émission sur le cycle de vie pour le gaz naturel (non précisé)
B83: Émissions (annuelles) | C83: =C74*C81 -> 1222.25 | D83: téq CO2/année | H83: Émissions (annuelles) | I83: =I74*I81 -> 9962.5 | J83: téq CO2/année | P83: Émissions (annuelles) | Q83: =Q78*Q81 -> 12089.93157 | R83: téq CO2/année | V83: Émissions (annuelles) | W83: =W74*W81 -> 73701.07527 | X83: téq CO2/année
B86: DIRECTES : | H86: DIRECTES : | P86: DIRECTES : | V86: DIRECTES :
B87: Total des émissions du projet (annuelles) : | C87: =SUMIF(E69,"Directes",C83) -> 1222.25 | D87: téq CO2/année | H87: Total des émissions de référence (annuelles) : | I87: =SUMIF(K69,"Directes",I83) -> 9962.5 | J87: téq CO2/année | P87: Total des émissions du projet (annuelles) : | Q87: =Q83 -> 12089.93157 | R87: téq CO2/année | V87: Total des émissions de référence (annuelles) : | W87: =W83 -> 73701.07527 | X87: téq CO2/année
B89: INDIRECTES : | H89: INDIRECTES : | P89: INDIRECTES : | V89: INDIRECTES :
B90: Total des émissions du projet (annuelles) : | C90: =SUMIF(E69,"Indirect",C83) -> 0 | D90: téq CO2/année | H90: Total des émissions de référence (annuelles) : | I90: =SUMIF(K69,"Indirect",I83) -> 0 | J90: téq CO2/année | P90: Total des émissions du projet (annuelles) : | Q90: =SUMIF(S69,"Indirect",Q83) -> 0 | R90: téq CO2/année | V90: Total des émissions de référence (annuelles) : | W90: =SUMIF(Y69,"Indirect",W83) -> 0 | X90: téq CO2/année
B95: Exemple no 3 : Solaire PV + Stockage d’énergie | P95: Exemple no 3 : Stockage d'énergie pour la régulation rapide de la fréquence du réseau en Alberta
B97: Description : | P97: Description :
B98: Cet exemple quantifie les réductions annuelles des émissions de GES d’une ferme solaire + système de stockage d’énergie par batterie en Alberta. | P98: Une batterie en Alberta est utilisée pour la régulation rapide de la fréquence du réseau.
B101: Projet | H101: Référence | P101: Projet | V101: Référence
B104: Veuillez sélectionner la composante dans la liste déroulante ci-dessous : | H104: Veuillez sélectionner la composante dans la liste déroulante ci-dessous : | P104: Veuillez sélectionner la composante dans la liste déroulante ci-dessous : | V104: Veuillez sélectionner la composante dans la liste déroulante ci-dessous :
B105: NOUVELLE installation de production en bloc | D105: Type de réduction/remplacement : | E105: Directes | H105: Installation de production en bloc EXISTANTE | J105: Type de réduction/remplacement : | K105: Directes | P105: NOUVELLE installation de stockage d’énergie | R105: Type de réduction/remplacement : | S105: Directes | V105: Installation de production en bloc EXISTANTE | X105: Type de réduction/remplacement : | Y105: Directes
B106: P.1. | H106: R.1. | P106: P.6. | V106: R.1.
B108: Parameter | C108: Value | D108: Unit | E108: Notes | H108: Parameter | I108: Value | J108: Unit | K108: Notes | P108: Parameter | Q108: Value | R108: Unit | S108: Notes | V108: Parameter | W108: Value | X108: Unit | Y108: Notes
B109: Quantité d'électricité produite par la nouvelle centrale solaire | C109: 25000000 | D109: kWh/année | E109: Facteur de capacité 20% | H109: Quantité d’électricité produite par la nouvelle éolienne | I109: 25000000 | J109: kWh/année | K109: *En supposant que la nouvelle production d’électricité remplacera un volume équivalent de production au gaz naturel comme ressource marginale. | P109: Capacité énergétique des batteries | Q109: 120 | R109: MWh | V109: Efficacité aller-retour | W109: 88 | X109: %
B110: Unit conversion | C110: =C109/1000 -> 25000 | D110: MWh/année | H110: Conversion de l’unité | I110: =I109/1000 -> 25000 | J110: MWh/année | P110: Durée de stockage dans des batteries | Q110: 4 | R110: heures | V110: Électricité remplacée par la décharge des batteries | W110: =Q114*(W109/100) -> 56774.19355 | X110: MWh/année
P111: Cycles prévus par année | Q111: 500 | R111: cycles/année
P112: Capacité de stockage par année | Q112: 60000 | R112: MWh/année
P113: Efficacité de charge | Q113: 93 | R113: %
P114: Électricité consommée pour la charge des batteries | Q114: =Q112/Q113*100 -> 64516.12903 | R114: MWh/année
B115: *Ajouter des paramètres au besoin | H115: *Ajouter des paramètres au besoin | P115: *Ajouter des paramètres au besoin | V115: *Ajouter des paramètres au besoin
E116: Description du FE | K116: Description du FE | S116: Description du FE | Y116: Description du FE
B117: Facteur d’émission (FE) | C117: ='3. Données'!C54 -> 0.04889 | D117: téq CO2/MWh | E117: Facteur d’émission sur le cycle de vie pour les projets d’éolienne terrestre | H117: Facteur d’émission (FE) | I117: 0.3985 | J117: téq CO2/MWh | K117: Facteur d’émission sur le cycle de vie pour le gaz naturel (non précisé) | P117: Facteur d’émission (FE) | Q117: =AVERAGE('3. Données'!H32:R32) -> 0.1209909091 | R117: téq CO2/MWh | S117: Facteur d'émission de 2030 à 2040 en Alberta. | V117: Facteur d’émission (FE) | W117: 0.3985 | X117: téq CO2/MWh | Y117: Facteur d'émission du cycle de vie pour le gaz naturel (non spécifié), en supposant que l'électricité dans la batterie remplacera une quantité équivalente d'électricité produite par le gaz naturel, comme ressource FFR. Ce chiffre pourrait diminuer à mesure que davantage de ressources énergétiques à faible teneur en carbone capables de FFR seront mises en service - cette évolution est reflétée dans l'onglet 6.
B119: Émissions (annuelles) | C119: =C110*C117 -> 1222.25 | D119: téq CO2/année | H119: Émissions (annuelles) | I119: =I110*I117 -> 9962.5 | J119: téq CO2/année | P119: Émissions (annuelles) | Q119: =Q114*Q117 -> 7805.865103 | R119: téq CO2/année | V119: Émissions (annuelles) | W119: =W110*W117 -> 22624.51613 | X119: téq CO2/année
B122: Veuillez sélectionner la composante dans la liste déroulante ci-dessous : | H122: Veuillez sélectionner la composante dans la liste déroulante ci-dessous : | P122: DIRECTES : | V122: DIRECTES :
B123: NOUVELLE installation de stockage d’énergie | D123: Type de réduction/remplacement : | E123: Directes | H123: Installation de production en bloc EXISTANTE | J123: Type de réduction/remplacement : | K123: Directes | P123: Total des émissions du projet (annuelles) : | Q123: =SUMIF(S105,"Direct",Q119) -> 0 | R123: téq CO2/année | V123: Total des émissions de référence (annuelles) : | W123: =SUMIF(Y105,"Direct",W119) -> 0 | X123: téq CO2/année
B124: P.1. | H124: R.1.
P125: INDIRECTES : | V125: INDIRECTES :
B126: Parameter | C126: Value | D126: Unit | E126: Notes | H126: Parameter | I126: Value | J126: Unit | K126: Notes | P126: Total des émissions du projet (annuelles) : | Q126: =SUMIF(S105,"Indirect",Q119) -> 0 | R126: téq CO2/année | V126: Total des émissions de référence (annuelles) : | W126: =SUMIF(Y105,"Indirect",W119) -> 0 | X126: téq CO2/année
B127: Production écrêtée par an | C127: 1000000 | D127: kWh/année | E127: D'après le modèle économique du projet | H127: Électricité consommée pour la recharge | I127: =SUM(C127:C129) -> 4500000 | J127: kWh/année | K127: *En supposant que la nouvelle production d’électricité remplacera un volume équivalent de production au gaz naturel comme ressource marginale.
B128: Arbitrage solaire par an | C128: 2000000 | D128: kWh/année | E128: D'après le modèle économique du projet | H128: Conversion de l’unité | I128: =I127/1000 -> 4500 | J128: MWh/année
B129: Arbitrage réseau par an | C129: 1500000 | D129: kWh/année | E129: D'après le modèle économique du projet | H129: Efficacité aller-retour | I129: 90 | J129: %
B130: Facteur d'émission de production écrêtée (solaire) | C130: ='3. Données'!C54 -> 0.04889 | D130: téq CO2/MWh | E130: Facteur d'émission du cycle de vie pour le solaire photovoltaïque selon le NREL | H130: Électricité déplacée par le système de stockage | I130: =I128*I129/100 -> 4050 | J130: MWh/année
B131: Facteur d'émission d'arbitrage solaire | C131: ='3. Données'!C69 -> 0.45 | D131: téq CO2/MWh | E131: L'énergie solaire est stockée pendant les périodes de bas prix. Elle remplace l'énergie du réseau qui serait autrement stockée pour l'arbitrage du réseau. L'intensité des émissions pendant ces périodes varie mais repose en grande partie sur la production à cycle combiné au gaz naturel, qui est le facteur utilisé ici.
B132: Facteur d'émission d'arbitrage réseau | C132: ='3. Données'!C69 -> 0.45 | D132: téq CO2/MWh | E132: Comme ci-dessus, l'intensité des émissions pendant les périodes de bas prix varie mais repose en grande partie sur la production à cycle combiné au gaz naturel à la marge, qui est l'EF utilisé ici. Il s'agit d'une hypothèse prudente car elle ne prend pas en compte la production éolienne qui peut également faire partie du mix de ressources marginales pendant les périodes de faible demande.
B133: Facteur d'émission moyen pondéré | C133: =(C130*C127+C131*C128+C132*C129)/(C127+C128+C129) -> 0.3608644444 | D133: téq CO2/MWh
B134: Électricité consommée pour la recharge | C134: =C127+C128+C129 -> 4500000 | D134: kWh/année
B135: Conversion d'unités | C135: =C134/1000 -> 4500 | D135: MWh/année
B136: *Ajouter des paramètres au besoin | H136: *Ajouter des paramètres au besoin
E137: Description du FE | K137: Description du FE
B138: Facteur d’émission (FE) | C138: =C133 -> 0.3608644444 | D138: téq CO2/MWh | E138: Facteur d'émission moyen pondéré tel que calculé ci-dessus | H138: Facteur d’émission (FE) | I138: 0.7 | J138: téq CO2/MWh | K138: Le système de stockage libère l'énergie stockée pendant les périodes de pointe de la demande, lorsque l'intensité des émissions est déterminée par les centrales au charbon converties pour utiliser du gaz pour ses chaudières conformément aux perspectives à long terme les plus récentes de l'AESO. Les centrales au charbon converties au gaz fonctionnent avec une efficacité inférieure à celle des centrales au gaz classiques. Les mises hors service prévues des centrales au charbon au gaz sont reflétées dans l'onglet 6. Le facteur d'émission utilisé ici donne une estimation prudente des émissions de référence, car les pertes en ligne ne sont pas prises en compte.
B140: Émissions (annuelles) | C140: =C135*C133 -> 1623.89 | D140: téq CO2/année | H140: Émissions (annuelles) | I140: =I130*I138 -> 2835 | J140: téq CO2/année
B143: DIRECTES : | H143: DIRECTES :
B144: Total des émissions du projet (annuelles) : | C144: =SUMIF(E123,"Directes",C140)+SUMIF(E105,"Directes",C119) -> 2846.14 | D144: téq CO2/année | H144: Total des émissions de référence (annuelles) : | I144: =SUMIF(K123,"Directes",I140)+SUMIF(K105,"Directes",I119) -> 12797.5 | J144: téq CO2/année
B146: INDIRECTES : | H146: INDIRECTES :
B147: Total des émissions du projet (annuelles) : | C147: =SUMIF(E123,"Indirect",C140) -> 0 | D147: téq CO2/année | H147: Total des émissions de référence (annuelles) : | I147: =SUMIF(K123,"Indirect",I140) -> 0 | J147: téq CO2/année

Sheet 5. Calculs
B2: Bilan GES
B5: DOCUMENTS DE RÉFÉRENCE
B7: 1. CSA ISO 14064-2:20 | C7: Spécifications et lignes directrices, à l’échelle des projets, pour la quantification, la surveillance et la déclaration des réductions d’émissions ou d’amélioration de l’élimination des gaz à effet de serre.
B8: 2. The GHG Protocol for Project Accounting (Protocole de comptabilisation des GES pour les projets) | C8: Le protocole de comptabilisation des GES pour les projets fournit des principes, des concepts et des méthodes spécifiques pour quantifier et déclarer les réductions de GES résultant de projets d’atténuation des changements climatiques.
B11: Lignes directrices :
B13: ÉTAPE 1. Dans le modèle de projet, sélectionner une composante dans la liste déroulante. ÉTAPE 2. Remplir le tableau en précisant le paramètre, la valeur et l’unité, et en insérant des notes, le cas échéant. Veuillez vous reporter aux exemples de la feuille « 4. Exemples » pour savoir comment remplir le tableau. *Veuillez noter que si vous souhaitez utiliser des « estimations de production d’électricité variable » (enregistrées dans la feuille « 2. Détermination de la portée »), vous devez passer à l’ÉTAPE 3. ÉTAPE 3. Sélectionner un facteur d’émission de la feuille « 3. Données » et préciser ses unités. Veuillez décrire le facteur d’émission dans le champ « Description du FE ». *Veuillez noter que si vous souhaitez utiliser les « facteurs d’intensité moyens du réseau » (enregistrés dans les cellules C32 - AB44 dans la feuille « 3. Données »), vous devez cliquer sur le bouton 1. (« 1. Utiliser les facteurs d’intensité moyens du réseau »). Il importe de noter que les résultats de ce calcul s’afficheront dans la feuille « 6. Résumé ». *Si vous avez saisi des « estimations de production d’électricité variable » dans la feuille « 2. Détermination de la portée » et souhaitez utiliser ces valeurs dans vos calculs, assurez-vous d’avoir sélectionné un facteur d’émission et cliquez sur le bouton 2. (« 2. Utiliser des estimations de production d’électricité variable »). Il importe de noter que les résultats de ce calcul s’afficheront dans la feuille « 6. Résumé ». *Si vous souhaitez utiliser des « facteurs d’intensité moyens du réseau » ET des « estimations de production d’électricité variable », veuillez cliquer sur le bouton 3. (« 3. Utiliser les deux »). Ce bouton permet d’utiliser les « facteurs d’intensité moyens du réseau » de la feuille « 3. Données » et les valeurs que vous avez saisies dans les cellules C66 - C91 de la feuille « 2. « Détermination de la portée » pour calculer les émissions annuelles [réductions/remplacements] pour chaque année d’exploitation. Il importe de noter que les résultats de ce calcul s’afficheront dans la feuille « 6. Résumé ». ÉTAPE 4. Écrire une formule pour calculer les émissions annuelles liées au projet en utilisant le facteur d’émission sélectionné et les valeurs enregistrées dans le tableau. Le résultat DOIT être exprimé en téq CO2/année. ÉTAPE 5. Répéter les ÉTAPES 1. à 4. pour le scénario de référence dans le modèle de référence. ÉTAPE 6. Si le projet comporte plus d’une composante, veuillez répéter les ÉTAPES 1. à 5. à l’aide des tableaux du modèle.
B18: Remarques :
B20: - Si vous avez besoin de tableaux supplémentaires, veuillez envoyer un courriel au programme : cmif-fimc@nrcan-rncan.gc.ca. - Veuillez consulter les exemples de calculs figurant dans la feuille précédente avant de remplir les tableaux ci-dessous.
B27: Projet | H27: Référence
P29: Facteurs d’intensité moyens du réseau OU Estimations de production d’électricité variable | AN29: Total
B30: Veuillez sélectionner la composante dans la liste déroulante ci-dessous : | H30: Veuillez sélectionner la composante dans la liste déroulante ci-dessous :
B31: NOUVELLE installation de production en bloc | D31: Type de réduction/remplacement : | E31: =IF(VLOOKUP(B31,Table5[[Catégorie de composante]:[Type d’émissions de GES '[Liste déroulante']]],4,FALSE)=0,"",VLOOKUP(B31,Table5[[Catégorie de composante]:[Type d’émissions de GES '[Liste déroulante']]],4,FALSE)) ->  | H31: Installation de production en bloc EXISTANTE | J31: Type de réduction/remplacement : | K31: =IF(VLOOKUP(H31,Table12[[Catégorie de composante]:[Type de réduction/remplacement des émissions de GES '[Liste déroulante']]],4,FALSE)=0,"",VLOOKUP(H31,Table12[[Catégorie de composante]:[Type de réduction/remplacement des émissions de GES '[Liste déroulante']]],4,FALSE)) -> Directes | P31: =B31 -> NOUVELLE installation de production en bloc | Q31: =B32 -> P.1. | T31: =$H$31 -> Installation de production en bloc EXISTANTE | U31: =$H$32 -> R.1. | X31: =$B$49 -> NOUVELLE infrastructure de transport | Y31: =$B$50 -> P.2. | AB31: =$H$49 -> Installation de production en bloc EXISTANTE | AC31: =$H$50 -> R.1. | AF31: =$B$67 -> NOUVELLE installation de production en bloc | AG31: =$B$68 -> P.1. | AJ31: =$H$67 -> Installation de production en bloc EXISTANTE | AK31: =$H$68 -> R.1. | AN31: Total - Directes | AR31: Total - Directes
B32: =INDEX(Table5[Index des composantes],MATCH(B31,Table5[Catégorie de composante],0)) -> P.1. | H32: =INDEX(Table12[Index des composantes],MATCH(H31,Table12[Catégorie de composante],0)) -> R.1. | P32: =E31 ->  | T32: =$K$31 -> Directes | X32: =$E$49 ->  | AB32: =$K$49 -> Directes | AF32: =$E$67 ->  | AJ32: =$K$67 -> Directes
P33: Tableau des émissions du projet | T33: Tableau des émissions de référence | X33: Tableau des émissions du projet | AB33: Tableau des émissions de référence | AF33: Tableau des émissions du projet | AJ33: Tableau des émissions de référence | AN33: Tableau des émissions du projet | AR33: Tableau des émissions de référence
B34: Parameter | C34: Value | D34: Unit | E34: Notes | H34: Parameter | I34: Value | J34: Unit | K34: Notes | Q34: téq CO2/année | U34: téq CO2/année | Y34: téq CO2/année | AC34: téq CO2/année | AG34: téq CO2/année | AK34: téq CO2/année | AN34: =IF($P$32="Direct",P34,0)+IF($X$32="Direct",X34,0)+IF($AF$32="Direct",AF34) -> 0 | AO34: téq CO2/année | AR34: =IF($T$32="Direct",T34,0)+IF($AB$32="Direct",AB34,0)+IF($AJ$32="Direct",AJ34,0) -> 0 | AS34: téq CO2/année
Q35: téq CO2/année | U35: téq CO2/année | Y35: téq CO2/année | AC35: téq CO2/année | AG35: téq CO2/année | AK35: téq CO2/année | AN35: 0 | AO35: téq CO2/année | AR35: 0 | AS35: téq CO2/année
Q36: téq CO2/année | U36: téq CO2/année | Y36: téq CO2/année | AC36: téq CO2/année | AG36: téq CO2/année | AK36: téq CO2/année | AN36: 0 | AO36: téq CO2/année | AR36: 0 | AS36: téq CO2/année
Q37: téq CO2/année | U37: téq CO2/année | Y37: téq CO2/année | AC37: téq CO2/année | AG37: téq CO2/année | AK37: téq CO2/année | AN37: 0 | AO37: téq CO2/année | AR37: 0 | AS37: téq CO2/année
Q38: téq CO2/année | U38: téq CO2/année | Y38: téq CO2/année | AC38: téq CO2/année | AG38: téq CO2/année | AK38: téq CO2/année | AN38: 0 | AO38: téq CO2/année | AR38: 0 | AS38: téq CO2/année
Q39: téq CO2/année | U39: téq CO2/année | Y39: téq CO2/année | AC39: téq CO2/année | AG39: téq CO2/année | AK39: téq CO2/année | AN39: 0 | AO39: téq CO2/année | AR39: 0 | AS39: téq CO2/année
Q40: téq CO2/année | U40: téq CO2/année | Y40: téq CO2/année | AC40: téq CO2/année | AG40: téq CO2/année | AK40: téq CO2/année | AN40: 0 | AO40: téq CO2/année | AR40: 0 | AS40: téq CO2/année
B41: *Ajouter des paramètres au besoin | H41: *Ajouter des paramètres au besoin | Q41: téq CO2/année | U41: téq CO2/année | Y41: téq CO2/année | AC41: téq CO2/année | AG41: téq CO2/année | AK41: téq CO2/année | AN41: 0 | AO41: téq CO2/année | AR41: 0 | AS41: téq CO2/année
E42: Description du FE | K42: Description du FE | Q42: téq CO2/année | U42: téq CO2/année | Y42: téq CO2/année | AC42: téq CO2/année | AG42: téq CO2/année | AK42: téq CO2/année | AN42: 0 | AO42: téq CO2/année | AR42: 0 | AS42: téq CO2/année
B43: Facteur d’émission (FE) | D43: Veuillez indiquer l’unité ici | H43: Facteur d’émission (FE) | J43: Veuillez indiquer l’unité ici | Q43: téq CO2/année | U43: téq CO2/année | Y43: téq CO2/année | AC43: téq CO2/année | AG43: téq CO2/année | AK43: téq CO2/année | AN43: 0 | AO43: téq CO2/année | AR43: 0 | AS43: téq CO2/année
Q44: téq CO2/année | U44: téq CO2/année | Y44: téq CO2/année | AC44: téq CO2/année | AG44: téq CO2/année | AK44: téq CO2/année | AN44: 0 | AO44: téq CO2/année | AR44: 0 | AS44: téq CO2/année
B45: Émissions (annuelles) | D45: téq CO2/année | H45: Émissions (annuelles) | J45: téq CO2/année | Q45: téq CO2/année | U45: téq CO2/année | Y45: téq CO2/année | AC45: téq CO2/année | AG45: téq CO2/année | AK45: téq CO2/année | AN45: 0 | AO45: téq CO2/année | AR45: 0 | AS45: téq CO2/année
C46: =IF(OR(COUNT(P34:P59)<>0,COUNT(P66:P91)<>0),"Effectué à partir des facteurs d'intensité moyenne du réseau, des estimations de production d'électricité variable, ou des deux. Si vous ne souhaitez pas utiliser ces données, cliquez sur le bouton pour effacer les données en bas du formulaire.","") ->  | I46: =IF(OR(COUNT(T34:T59)<>0,COUNT(T66:T91)<>0),"Effectué à partir des facteurs d'intensité moyenne du réseau, des estimations de production d'électricité variable, ou des deux. Si vous ne souhaitez pas utiliser ces données, cliquez sur le bouton pour effacer les données en bas du formulaire.","") ->  | Q46: téq CO2/année | U46: téq CO2/année | Y46: téq CO2/année | AC46: téq CO2/année | AG46: téq CO2/année | AK46: téq CO2/année | AN46: 0 | AO46: téq CO2/année | AR46: 0 | AS46: téq CO2/année
Q47: téq CO2/année | U47: téq CO2/année | Y47: téq CO2/année | AC47: téq CO2/année | AG47: téq CO2/année | AK47: téq CO2/année | AN47: 0 | AO47: téq CO2/année | AR47: 0 | AS47: téq CO2/année
B48: Veuillez sélectionner la composante dans la liste déroulante ci-dessous : | H48: Veuillez sélectionner la composante dans la liste déroulante ci-dessous : | Q48: téq CO2/année | U48: téq CO2/année | Y48: téq CO2/année | AC48: téq CO2/année | AG48: téq CO2/année | AK48: téq CO2/année | AN48: 0 | AO48: téq CO2/année | AR48: 0 | AS48: téq CO2/année
B49: NOUVELLE infrastructure de transport | D49: Type de réduction/remplacement : | E49: =IF(VLOOKUP(B49,Table5[[Catégorie de composante]:[Type d’émissions de GES '[Liste déroulante']]],4,FALSE)=0,"",VLOOKUP(B49,Table5[[Catégorie de composante]:[Type d’émissions de GES '[Liste déroulante']]],4,FALSE)) ->  | H49: Installation de production en bloc EXISTANTE | J49: Type de réduction/remplacement : | K49: =IF(VLOOKUP(H49,Table12[[Catégorie de composante]:[Type de réduction/remplacement des émissions de GES '[Liste déroulante']]],4,FALSE)=0,"",VLOOKUP(H49,Table12[[Catégorie de composante]:[Type de réduction/remplacement des émissions de GES '[Liste déroulante']]],4,FALSE)) -> Directes | Q49: téq CO2/année | U49: téq CO2/année | Y49: téq CO2/année | AC49: téq CO2/année | AG49: téq CO2/année | AK49: téq CO2/année | AN49: 0 | AO49: téq CO2/année | AR49: 0 | AS49: téq CO2/année
B50: =INDEX(Table5[Index des composantes],MATCH(B49,Table5[Catégorie de composante],0)) -> P.2. | H50: =INDEX(Table12[Index des composantes],MATCH(H49,Table12[Catégorie de composante],0)) -> R.1. | Q50: téq CO2/année | U50: téq CO2/année | Y50: téq CO2/année | AC50: téq CO2/année | AG50: téq CO2/année | AK50: téq CO2/année | AN50: 0 | AO50: téq CO2/année | AR50: 0 | AS50: téq CO2/année
Q51: téq CO2/année | U51: téq CO2/année | Y51: téq CO2/année | AC51: téq CO2/année | AG51: téq CO2/année | AK51: téq CO2/année | AN51: 0 | AO51: téq CO2/année | AR51: 0 | AS51: téq CO2/année
B52: Parameter | C52: Value | D52: Unit | E52: Notes | H52: Parameter | I52: Value | J52: Unit | K52: Notes | Q52: téq CO2/année | U52: téq CO2/année | Y52: téq CO2/année | AC52: téq CO2/année | AG52: téq CO2/année | AK52: téq CO2/année | AN52: 0 | AO52: téq CO2/année | AR52: 0 | AS52: téq CO2/année
Q53: téq CO2/année | U53: téq CO2/année | Y53: téq CO2/année | AC53: téq CO2/année | AG53: téq CO2/année | AK53: téq CO2/année | AN53: 0 | AO53: téq CO2/année | AR53: 0 | AS53: téq CO2/année
Q54: téq CO2/année | U54: téq CO2/année | Y54: téq CO2/année | AC54: téq CO2/année | AG54: téq CO2/année | AK54: téq CO2/année | AN54: 0 | AO54: téq CO2/année | AR54: 0 | AS54: téq CO2/année
Q55: téq CO2/année | U55: téq CO2/année | Y55: téq CO2/année | AC55: téq CO2/année | AG55: téq CO2/année | AK55: téq CO2/année | AN55: 0 | AO55: téq CO2/année | AR55: 0 | AS55: téq CO2/année
Q56: téq CO2/année | U56: téq CO2/année | Y56: téq CO2/année | AC56: téq CO2/année | AG56: téq CO2/année | AK56: téq CO2/année | AN56: 0 | AO56: téq CO2/année | AR56: 0 | AS56: téq CO2/année
Q57: téq CO2/année | U57: téq CO2/année | Y57: téq CO2/année | AC57: téq CO2/année | AG57: téq CO2/année | AK57: téq CO2/année | AN57: 0 | AO57: téq CO2/année | AR57: 0 | AS57: téq CO2/année
Q58: téq CO2/année | U58: téq CO2/année | Y58: téq CO2/année | AC58: téq CO2/année | AG58: téq CO2/année | AK58: téq CO2/année | AN58: 0 | AO58: téq CO2/année | AR58: 0 | AS58: téq CO2/année
B59: *Ajouter des paramètres au besoin | H59: *Ajouter des paramètres au besoin | Q59: téq CO2/année | U59: téq CO2/année | Y59: téq CO2/année | AC59: téq CO2/année | AG59: téq CO2/année | AK59: téq CO2/année | AN59: 0 | AO59: téq CO2/année | AR59: 0 | AS59: téq CO2/année
E60: Description du FE | K60: Description du FE
B61: Facteur d’émission (FE) | D61: Veuillez indiquer l’unité ici | H61: Facteur d’émission (FE) | J61: Veuillez indiquer l’unité ici | P61: Facteurs d’intensité moyens du réseau et production d’électricité variable | AN61: Total
B63: Émissions (annuelles) | D63: téq CO2/année | H63: Émissions (annuelles) | J63: téq CO2/année | P63: =$B$31 -> NOUVELLE installation de production en bloc | Q63: =$B$32 -> P.1. | T63: =$H$31 -> Installation de production en bloc EXISTANTE | U63: =$H$32 -> R.1. | X63: =$B$49 -> NOUVELLE infrastructure de transport | Y63: =$B$50 -> P.2. | AB63: =$H$49 -> Installation de production en bloc EXISTANTE | AC63: =$H$50 -> R.1. | AF63: =$B$67 -> NOUVELLE installation de production en bloc | AG63: =$B$68 -> P.1. | AJ63: =$H$67 -> Installation de production en bloc EXISTANTE | AK63: =$H$68 -> R.1. | AN63: Total - Directes | AR63: Total - Directes
C64: =IF(OR(COUNT(X34:X59)<>0,COUNT(X66:X91)<>0),"Effectué à partir des facteurs d'intensité moyenne du réseau, des estimations de production d'électricité variable, ou des deux. Si vous ne souhaitez pas utiliser ces données, cliquez sur le bouton pour effacer les données en bas du formulaire.","") ->  | I64: =IF(OR(COUNT(AB34:AB59)<>0,COUNT(AB66:AB91)<>0),"Effectué à partir des facteurs d'intensité moyenne du réseau, des estimations de production d'électricité variable, ou des deux. Si vous ne souhaitez pas utiliser ces données, cliquez sur le bouton pour effacer les données en bas du formulaire.","") ->  | P64: =$E$31 ->  | T64: =$K$31 -> Directes | X64: =$E$49 ->  | AB64: =$K$49 -> Directes | AF64: =$E$67 ->  | AJ64: =$K$67 -> Directes
P65: Tableau des émissions du projet | T65: Tableau des émissions de référence | X65: Tableau des émissions du projet | AB65: Tableau des émissions de référence | AF65: Tableau des émissions du projet | AJ65: Tableau des émissions de référence | AN65: Tableau des émissions du projet | AR65: Tableau des émissions de référence
B66: Veuillez sélectionner la composante dans la liste déroulante ci-dessous : | H66: Veuillez sélectionner la composante dans la liste déroulante ci-dessous : | Q66: téq CO2/année | U66: téq CO2/année | Y66: téq CO2/année | AC66: téq CO2/année | AG66: téq CO2/année | AK66: téq CO2/année | AN66: =IF($P$64="Direct",P66,0)+IF($X$64="Direct",X66,0)+IF($AF$64="Direct",AF66,0) -> 0 | AO66: téq CO2/année | AR66: =IF($T$64="Direct",T66,0)+IF($AB$64="Direct",AB66,0)+IF($AJ$64="Direct",AJ66,0) -> 0 | AS66: téq CO2/année
B67: NOUVELLE installation de production en bloc | D67: Type de réduction/remplacement : | E67: =IF(VLOOKUP(B67,Table5[[Catégorie de composante]:[Type d’émissions de GES '[Liste déroulante']]],4,FALSE)=0,"",VLOOKUP(B67,Table5[[Catégorie de composante]:[Type d’émissions de GES '[Liste déroulante']]],4,FALSE)) ->  | H67: Installation de production en bloc EXISTANTE | J67: Type de réduction/remplacement : | K67: =IF(VLOOKUP(H67,Table12[[Catégorie de composante]:[Type de réduction/remplacement des émissions de GES '[Liste déroulante']]],4,FALSE)=0,"",VLOOKUP(H67,Table12[[Catégorie de composante]:[Type de réduction/remplacement des émissions de GES '[Liste déroulante']]],4,FALSE)) -> Directes | Q67: téq CO2/année | U67: téq CO2/année | Y67: téq CO2/année | AC67: téq CO2/année | AG67: téq CO2/année | AK67: téq CO2/année | AN67: 0 | AO67: téq CO2/année | AR67: 0 | AS67: téq CO2/année
B68: =INDEX(Table5[Index des composantes],MATCH(B67,Table5[Catégorie de composante],0)) -> P.1. | H68: =INDEX(Table12[Index des composantes],MATCH(H67,Table12[Catégorie de composante],0)) -> R.1. | Q68: téq CO2/année | U68: téq CO2/année | Y68: téq CO2/année | AC68: téq CO2/année | AG68: téq CO2/année | AK68: téq CO2/année | AN68: 0 | AO68: téq CO2/année | AR68: 0 | AS68: téq CO2/année
Q69: téq CO2/année | U69: téq CO2/année | Y69: téq CO2/année | AC69: téq CO2/année | AG69: téq CO2/année | AK69: téq CO2/année | AN69: 0 | AO69: téq CO2/année | AR69: 0 | AS69: téq CO2/année
B70: Parameter | C70: Value | D70: Unit | E70: Notes | H70: Parameter | I70: Value | J70: Unit | K70: Notes | Q70: téq CO2/année | U70: téq CO2/année | Y70: téq CO2/année | AC70: téq CO2/année | AG70: téq CO2/année | AK70: téq CO2/année | AN70: 0 | AO70: téq CO2/année | AR70: 0 | AS70: téq CO2/année
Q71: téq CO2/année | U71: téq CO2/année | Y71: téq CO2/année | AC71: téq CO2/année | AG71: téq CO2/année | AK71: téq CO2/année | AN71: 0 | AO71: téq CO2/année | AR71: 0 | AS71: téq CO2/année
Q72: téq CO2/année | U72: téq CO2/année | Y72: téq CO2/année | AC72: téq CO2/année | AG72: téq CO2/année | AK72: téq CO2/année | AN72: 0 | AO72: téq CO2/année | AR72: 0 | AS72: téq CO2/année
Q73: téq CO2/année | U73: téq CO2/année | Y73: téq CO2/année | AC73: téq CO2/année | AG73: téq CO2/année | AK73: téq CO2/année | AN73: 0 | AO73: téq CO2/année | AR73: 0 | AS73: téq CO2/année
Q74: téq CO2/année | U74: téq CO2/année | Y74: téq CO2/année | AC74: téq CO2/année | AG74: téq CO2/année | AK74: téq CO2/année | AN74: 0 | AO74: téq CO2/année | AR74: 0 | AS74: téq CO2/année
Q75: téq CO2/année | U75: téq CO2/année | Y75: téq CO2/année | AC75: téq CO2/année | AG75: téq CO2/année | AK75: téq CO2/année | AN75: 0 | AO75: téq CO2/année | AR75: 0 | AS75: téq CO2/année
Q76: téq CO2/année | U76: téq CO2/année | Y76: téq CO2/année | AC76: téq CO2/année | AG76: téq CO2/année | AK76: téq CO2/année | AN76: 0 | AO76: téq CO2/année | AR76: 0 | AS76: téq CO2/année
B77: *Ajouter des paramètres au besoin | H77: *Ajouter des paramètres au besoin | Q77: téq CO2/année | U77: téq CO2/année | Y77: téq CO2/année | AC77: téq CO2/année | AG77: téq CO2/année | AK77: téq CO2/année | AN77: 0 | AO77: téq CO2/année | AR77: 0 | AS77: téq CO2/année
E78: Description du FE | K78: Description du FE | Q78: téq CO2/année | U78: téq CO2/année | Y78: téq CO2/année | AC78: téq CO2/année | AG78: téq CO2/année | AK78: téq CO2/année | AN78: 0 | AO78: téq CO2/année | AR78: 0 | AS78: téq CO2/année
B79: Facteur d’émission (FE) | D79: Veuillez indiquer l’unité ici | H79: Facteur d’émission (FE) | J79: Veuillez indiquer l’unité ici | Q79: téq CO2/année | U79: téq CO2/année | Y79: téq CO2/année | AC79: téq CO2/année | AG79: téq CO2/année | AK79: téq CO2/année | AN79: 0 | AO79: téq CO2/année | AR79: 0 | AS79: téq CO2/année
Q80: téq CO2/année | U80: téq CO2/année | Y80: téq CO2/année | AC80: téq CO2/année | AG80: téq CO2/année | AK80: téq CO2/année | AN80: 0 | AO80: téq CO2/année | AR80: 0 | AS80: téq CO2/année
B81: Émissions (annuelles) | D81: téq CO2/année | H81: Émissions (annuelles) | J81: téq CO2/année | Q81: téq CO2/année | U81: téq CO2/année | Y81: téq CO2/année | AC81: téq CO2/année | AG81: téq CO2/année | AK81: téq CO2/année | AN81: 0 | AO81: téq CO2/année | AR81: 0 | AS81: téq CO2/année
C82: =IF(OR(COUNT(AF34:AF59)<>0,COUNT(AF66:AF91)<>0),"Effectué à partir des facteurs d'intensité moyenne du réseau, des estimations de production d'électricité variable, ou des deux. Si vous ne souhaitez pas utiliser ces données, cliquez sur le bouton pour effacer les données en bas du formulaire.","") ->  | I82: =IF(OR(COUNT(AJ34:AJ59)<>0,COUNT(AJ66:AJ91)<>0),"Effectué à partir des facteurs d'intensité moyenne du réseau, des estimations de production d'électricité variable, ou des deux. Si vous ne souhaitez pas utiliser ces données, cliquez sur le bouton pour effacer les données en bas du formulaire.","") ->  | Q82: téq CO2/année | U82: téq CO2/année | Y82: téq CO2/année | AC82: téq CO2/année | AG82: téq CO2/année | AK82: téq CO2/année | AN82: 0 | AO82: téq CO2/année | AR82: 0 | AS82: téq CO2/année
Q83: téq CO2/année | U83: téq CO2/année | Y83: téq CO2/année | AC83: téq CO2/année | AG83: téq CO2/année | AK83: téq CO2/année | AN83: 0 | AO83: téq CO2/année | AR83: 0 | AS83: téq CO2/année
B84: DIRECTES : | H84: DIRECTES : | Q84: téq CO2/année | U84: téq CO2/année | Y84: téq CO2/année | AC84: téq CO2/année | AG84: téq CO2/année | AK84: téq CO2/année | AN84: 0 | AO84: téq CO2/année | AR84: 0 | AS84: téq CO2/année
B85: Total des émissions du projet (annuelles) : | C85: =SUMIF(E31,"Directes",C45)+SUMIF(E49,"Directes",C63)+SUMIF(E67,"Directes",C81) -> 0 | D85: téq CO2/année | H85: Total des émissions de référence (annuelles) : | I85: =SUMIF(K31,"Directes",I45)+SUMIF(K49,"Directes",I63)+SUMIF(K67,"Directes",I81) -> 0 | J85: téq CO2/année | Q85: téq CO2/année | U85: téq CO2/année | Y85: téq CO2/année | AC85: téq CO2/année | AG85: téq CO2/année | AK85: téq CO2/année | AN85: 0 | AO85: téq CO2/année | AR85: 0 | AS85: téq CO2/année
Q86: téq CO2/année | U86: téq CO2/année | Y86: téq CO2/année | AC86: téq CO2/année | AG86: téq CO2/année | AK86: téq CO2/année | AN86: 0 | AO86: téq CO2/année | AR86: 0 | AS86: téq CO2/année
B87: INDIRECTES : | H87: INDIRECTES : | Q87: téq CO2/année | U87: téq CO2/année | Y87: téq CO2/année | AC87: téq CO2/année | AG87: téq CO2/année | AK87: téq CO2/année | AN87: 0 | AO87: téq CO2/année | AR87: 0 | AS87: téq CO2/année
B88: Total des émissions du projet (annuelles) : | C88: =SUMIF(E31,"Indirectes",C45)+SUMIF(E49,"Indirectes",C63)+SUMIF(E67,"Indirectes",C81) -> 0 | D88: téq CO2/année | H88: Total des émissions de référence (annuelles) : | I88: =SUMIF(K31,"Indirectes",I45)+SUMIF(K49,"Indirectes",I63)+SUMIF(K67,"Indirectes",I81) -> 0 | J88: téq CO2/année | Q88: téq CO2/année | U88: téq CO2/année | Y88: téq CO2/année | AC88: téq CO2/année | AG88: téq CO2/année | AK88: téq CO2/année | AN88: 0 | AO88: téq CO2/année | AR88: 0 | AS88: téq CO2/année
Q89: téq CO2/année | U89: téq CO2/année | Y89: téq CO2/année | AC89: téq CO2/année | AG89: téq CO2/année | AK89: téq CO2/année | AN89: 0 | AO89: téq CO2/année | AR89: 0 | AS89: téq CO2/année
Q90: téq CO2/année | U90: téq CO2/année | Y90: téq CO2/année | AC90: téq CO2/année | AG90: téq CO2/année | AK90: téq CO2/année | AN90: 0 | AO90: téq CO2/année | AR90: 0 | AS90: téq CO2/année
Q91: téq CO2/année | U91: téq CO2/année | Y91: téq CO2/année | AC91: téq CO2/année | AG91: téq CO2/année | AK91: téq CO2/année | AN91: 0 | AO91: téq CO2/année | AR91: 0 | AS91: téq CO2/année

Sheet 6. Résumé
B2: Résumé
B4: Bilan GES
B7: Directes | F7: Indirectes
B9: Total des émissions du projet (annuelles) : | C9: =IF('1b. Informations de base'!F65=0,'5. Calculs'!C85,'1b. Informations de base'!F65) -> 0 | D9: téq CO2/année | F9: Total des émissions du projet (annuelles) : | G9: ='5. Calculs'!C88 -> 0 | H9: téq CO2/année
B10: Total des émissions de référence (annuelles) : | C10: =IF('1b. Informations de base'!G65=0,'5. Calculs'!I85,'1b. Informations de base'!G65) -> 0 | D10: téq CO2/année | F10: Total des émissions de référence (annuelles) : | G10: ='5. Calculs'!I88 -> 0 | H10: téq CO2/année
B12: Émissions nettes (annuelles) [DIRECTES] : | C12: =C10-C9 -> 0 | D12: téq CO2/année | F12: Émissions nettes (annuelles) [INDIRECTES] : | G12: =G10-G9 -> 0 | H12: téq CO2/année
C13: =IF(OR(SUM('5. Calculs'!AN34:AN59)<>0,SUM('5. Calculs'!AR34:AR59)<>0,SUM('5. Calculs'!AN66:AN91)<>0,SUM('5. Calculs'!AR66:AR91)<>0),"*Baseline emissions and/or Project emissions vary from year to year. Please consult summary table below.","") -> 
B14: Pourcentage annuel moyen de réduction : | C14: =(C12+G12)/(C10+G10) -> 
B15: Quantification des réductions/remplacements futurs des émissions de GES [DIRECTES]
B17: Année civile au cours de laquelle le projet est mis en service et réalise dans les faits des réductions ou des remplacements d’émissions :
B18: Durée de vie de la technologie, du produit ou du service financé (années) :
B20: Description de la variabilité :
B21: Le cas échéant, veuillez décrire tout changement attendu dans le volume prévu des réductions ou des remplacements des émissions de gaz à effet de serre au fil du temps et la raison de cette variabilité.
B24: Année | C24: Émissions de référence (téq CO2/année) | D24: Variation des émissions de référence (%) | F24: Émissions du projet (téq CO2/année) | G24: Variation des émissions du projet (%) | H24: Total annuel des réductions/remplacements des émissions (téq CO2/année) | I24: Réductions/remplacements cumulatifs des émissions (téq CO2)
B25: =D17 -> 0 | C25: =IF(B25<>"",IF('5. Calculs'!AR66=0,IF('5. Calculs'!AR34=0,C10,'5. Calculs'!AR34),'5. Calculs'!AR66),0) -> 0 | D25: 0 | F25: =IF(B25<>"",IF('5. Calculs'!AN66=0,IF('5. Calculs'!AN34=0,C9,'5. Calculs'!AN34),'5. Calculs'!AN66),0) -> 0 | G25: 0 | H25: =C25-F25 -> 0 | I25: =H25 -> 0
B26: =IFERROR(IF((B25+1)>($D$17+$D$18),"",(B25+1)),"") ->  | C26: =IF(B26<>"",IF(B26>2050,(C25+(D26*C25)),IF('5. Calculs'!AR67=0,IF('5. Calculs'!AR35=0,(C25+(D26*C25)),'5. Calculs'!AR35),'5. Calculs'!AR67)),0) -> 0 | F26: =IF(B26<>"",IF(B26>2050,(F25+(G26*F25)),IF('5. Calculs'!AN67=0,IF('5. Calculs'!AN35=0,(F25+(G26*F25)),'5. Calculs'!AN35),'5. Calculs'!AN67)),0) -> 0 | H26: =C26-F26 -> 0 | I26: =I25+H26 -> 0
B27: =IFERROR(IF((B26+1)>($D$17+$D$18),"",(B26+1)),"") ->  | C27: =IF(B27<>"",IF(B27>2050,(C26+(D27*C26)),IF('5. Calculs'!AR68=0,IF('5. Calculs'!AR36=0,(C26+(D27*C26)),'5. Calculs'!AR36),'5. Calculs'!AR68)),0) -> 0 | F27: =IF(B27<>"",IF(B27>2050,(F26+(G27*F26)),IF('5. Calculs'!AN68=0,IF('5. Calculs'!AN36=0,(F26+(G27*F26)),'5. Calculs'!AN36),'5. Calculs'!AN68)),0) -> 0 | H27: =C27-F27 -> 0 | I27: =I26+H27 -> 0
C28: =IF(B28<>"",IF(B28>2050,(C27+(D28*C27)),IF('5. Calculs'!AR69=0,IF('5. Calculs'!AR37=0,(C27+(D28*C27)),'5. Calculs'!AR37),'5. Calculs'!AR69)),0) -> 0 | F28: =IF(B28<>"",IF(B28>2050,(F27+(G28*F27)),IF('5. Calculs'!AN69=0,IF('5. Calculs'!AN37=0,(F27+(G28*F27)),'5. Calculs'!AN37),'5. Calculs'!AN69)),0) -> 0 | H28: 0 | I28: 0
C29: =IF(B29<>"",IF(B29>2050,(C28+(D29*C28)),IF('5. Calculs'!AR70=0,IF('5. Calculs'!AR38=0,(C28+(D29*C28)),'5. Calculs'!AR38),'5. Calculs'!AR70)),0) -> 0 | F29: =IF(B29<>"",IF(B29>2050,(F28+(G29*F28)),IF('5. Calculs'!AN70=0,IF('5. Calculs'!AN38=0,(F28+(G29*F28)),'5. Calculs'!AN38),'5. Calculs'!AN70)),0) -> 0 | H29: 0 | I29: 0
C30: =IF(B30<>"",IF(B30>2050,(C29+(D30*C29)),IF('5. Calculs'!AR71=0,IF('5. Calculs'!AR39=0,(C29+(D30*C29)),'5. Calculs'!AR39),'5. Calculs'!AR71)),0) -> 0 | F30: =IF(B30<>"",IF(B30>2050,(F29+(G30*F29)),IF('5. Calculs'!AN71=0,IF('5. Calculs'!AN39=0,(F29+(G30*F29)),'5. Calculs'!AN39),'5. Calculs'!AN71)),0) -> 0 | H30: 0 | I30: 0
C31: =IF(B31<>"",IF(B31>2050,(C30+(D31*C30)),IF('5. Calculs'!AR72=0,IF('5. Calculs'!AR40=0,(C30+(D31*C30)),'5. Calculs'!AR40),'5. Calculs'!AR72)),0) -> 0 | F31: =IF(B31<>"",IF(B31>2050,(F30+(G31*F30)),IF('5. Calculs'!AN72=0,IF('5. Calculs'!AN40=0,(F30+(G31*F30)),'5. Calculs'!AN40),'5. Calculs'!AN72)),0) -> 0 | H31: 0 | I31: 0
C32: =IF(B32<>"",IF(B32>2050,(C31+(D32*C31)),IF('5. Calculs'!AR73=0,IF('5. Calculs'!AR41=0,(C31+(D32*C31)),'5. Calculs'!AR41),'5. Calculs'!AR73)),0) -> 0 | F32: =IF(B32<>"",IF(B32>2050,(F31+(G32*F31)),IF('5. Calculs'!AN73=0,IF('5. Calculs'!AN41=0,(F31+(G32*F31)),'5. Calculs'!AN41),'5. Calculs'!AN73)),0) -> 0 | H32: 0 | I32: 0
C33: =IF(B33<>"",IF(B33>2050,(C32+(D33*C32)),IF('5. Calculs'!AR74=0,IF('5. Calculs'!AR42=0,(C32+(D33*C32)),'5. Calculs'!AR42),'5. Calculs'!AR74)),0) -> 0 | F33: =IF(B33<>"",IF(B33>2050,(F32+(G33*F32)),IF('5. Calculs'!AN74=0,IF('5. Calculs'!AN42=0,(F32+(G33*F32)),'5. Calculs'!AN42),'5. Calculs'!AN74)),0) -> 0 | H33: 0 | I33: 0
C34: =IF(B34<>"",IF(B34>2050,(C33+(D34*C33)),IF('5. Calculs'!AR75=0,IF('5. Calculs'!AR43=0,(C33+(D34*C33)),'5. Calculs'!AR43),'5. Calculs'!AR75)),0) -> 0 | F34: =IF(B34<>"",IF(B34>2050,(F33+(G34*F33)),IF('5. Calculs'!AN75=0,IF('5. Calculs'!AN43=0,(F33+(G34*F33)),'5. Calculs'!AN43),'5. Calculs'!AN75)),0) -> 0 | H34: 0 | I34: 0
C35: =IF(B35<>"",IF(B35>2050,(C34+(D35*C34)),IF('5. Calculs'!AR76=0,IF('5. Calculs'!AR44=0,(C34+(D35*C34)),'5. Calculs'!AR44),'5. Calculs'!AR76)),0) -> 0 | F35: =IF(B35<>"",IF(B35>2050,(F34+(G35*F34)),IF('5. Calculs'!AN76=0,IF('5. Calculs'!AN44=0,(F34+(G35*F34)),'5. Calculs'!AN44),'5. Calculs'!AN76)),0) -> 0 | H35: 0 | I35: 0
C36: =IF(B36<>"",IF(B36>2050,(C35+(D36*C35)),IF('5. Calculs'!AR77=0,IF('5. Calculs'!AR45=0,(C35+(D36*C35)),'5. Calculs'!AR45),'5. Calculs'!AR77)),0) -> 0 | F36: =IF(B36<>"",IF(B36>2050,(F35+(G36*F35)),IF('5. Calculs'!AN77=0,IF('5. Calculs'!AN45=0,(F35+(G36*F35)),'5. Calculs'!AN45),'5. Calculs'!AN77)),0) -> 0 | H36: 0 | I36: 0
C37: =IF(B37<>"",IF(B37>2050,(C36+(D37*C36)),IF('5. Calculs'!AR78=0,IF('5. Calculs'!AR46=0,(C36+(D37*C36)),'5. Calculs'!AR46),'5. Calculs'!AR78)),0) -> 0 | F37: =IF(B37<>"",IF(B37>2050,(F36+(G37*F36)),IF('5. Calculs'!AN78=0,IF('5. Calculs'!AN46=0,(F36+(G37*F36)),'5. Calculs'!AN46),'5. Calculs'!AN78)),0) -> 0 | H37: 0 | I37: 0
C38: =IF(B38<>"",IF(B38>2050,(C37+(D38*C37)),IF('5. Calculs'!AR79=0,IF('5. Calculs'!AR47=0,(C37+(D38*C37)),'5. Calculs'!AR47),'5. Calculs'!AR79)),0) -> 0 | F38: =IF(B38<>"",IF(B38>2050,(F37+(G38*F37)),IF('5. Calculs'!AN79=0,IF('5. Calculs'!AN47=0,(F37+(G38*F37)),'5. Calculs'!AN47),'5. Calculs'!AN79)),0) -> 0 | H38: 0 | I38: 0
C39: =IF(B39<>"",IF(B39>2050,(C38+(D39*C38)),IF('5. Calculs'!AR80=0,IF('5. Calculs'!AR48=0,(C38+(D39*C38)),'5. Calculs'!AR48),'5. Calculs'!AR80)),0) -> 0 | F39: =IF(B39<>"",IF(B39>2050,(F38+(G39*F38)),IF('5. Calculs'!AN80=0,IF('5. Calculs'!AN48=0,(F38+(G39*F38)),'5. Calculs'!AN48),'5. Calculs'!AN80)),0) -> 0 | H39: 0 | I39: 0
C40: =IF(B40<>"",IF(B40>2050,(C39+(D40*C39)),IF('5. Calculs'!AR81=0,IF('5. Calculs'!AR49=0,(C39+(D40*C39)),'5. Calculs'!AR49),'5. Calculs'!AR81)),0) -> 0 | F40: =IF(B40<>"",IF(B40>2050,(F39+(G40*F39)),IF('5. Calculs'!AN81=0,IF('5. Calculs'!AN49=0,(F39+(G40*F39)),'5. Calculs'!AN49),'5. Calculs'!AN81)),0) -> 0 | H40: 0 | I40: 0
C41: =IF(B41<>"",IF(B41>2050,(C40+(D41*C40)),IF('5. Calculs'!AR82=0,IF('5. Calculs'!AR50=0,(C40+(D41*C40)),'5. Calculs'!AR50),'5. Calculs'!AR82)),0) -> 0 | F41: =IF(B41<>"",IF(B41>2050,(F40+(G41*F40)),IF('5. Calculs'!AN82=0,IF('5. Calculs'!AN50=0,(F40+(G41*F40)),'5. Calculs'!AN50),'5. Calculs'!AN82)),0) -> 0 | H41: 0 | I41: 0
C42: =IF(B42<>"",IF(B42>2050,(C41+(D42*C41)),IF('5. Calculs'!AR83=0,IF('5. Calculs'!AR51=0,(C41+(D42*C41)),'5. Calculs'!AR51),'5. Calculs'!AR83)),0) -> 0 | F42: =IF(B42<>"",IF(B42>2050,(F41+(G42*F41)),IF('5. Calculs'!AN83=0,IF('5. Calculs'!AN51=0,(F41+(G42*F41)),'5. Calculs'!AN51),'5. Calculs'!AN83)),0) -> 0 | H42: 0 | I42: 0
C43: =IF(B43<>"",IF(B43>2050,(C42+(D43*C42)),IF('5. Calculs'!AR84=0,IF('5. Calculs'!AR52=0,(C42+(D43*C42)),'5. Calculs'!AR52),'5. Calculs'!AR84)),0) -> 0 | F43: =IF(B43<>"",IF(B43>2050,(F42+(G43*F42)),IF('5. Calculs'!AN84=0,IF('5. Calculs'!AN52=0,(F42+(G43*F42)),'5. Calculs'!AN52),'5. Calculs'!AN84)),0) -> 0 | H43: 0 | I43: 0
C44: =IF(B44<>"",IF(B44>2050,(C43+(D44*C43)),IF('5. Calculs'!AR85=0,IF('5. Calculs'!AR53=0,(C43+(D44*C43)),'5. Calculs'!AR53),'5. Calculs'!AR85)),0) -> 0 | F44: =IF(B44<>"",IF(B44>2050,(F43+(G44*F43)),IF('5. Calculs'!AN85=0,IF('5. Calculs'!AN53=0,(F43+(G44*F43)),'5. Calculs'!AN53),'5. Calculs'!AN85)),0) -> 0 | H44: 0 | I44: 0
C45: =IF(B45<>"",IF(B45>2050,(C44+(D45*C44)),IF('5. Calculs'!AR86=0,IF('5. Calculs'!AR54=0,(C44+(D45*C44)),'5. Calculs'!AR54),'5. Calculs'!AR86)),0) -> 0 | F45: =IF(B45<>"",IF(B45>2050,(F44+(G45*F44)),IF('5. Calculs'!AN86=0,IF('5. Calculs'!AN54=0,(F44+(G45*F44)),'5. Calculs'!AN54),'5. Calculs'!AN86)),0) -> 0 | H45: 0 | I45: 0
C46: =IF(B46<>"",IF(B46>2050,(C45+(D46*C45)),IF('5. Calculs'!AR87=0,IF('5. Calculs'!AR55=0,(C45+(D46*C45)),'5. Calculs'!AR55),'5. Calculs'!AR87)),0) -> 0 | F46: =IF(B46<>"",IF(B46>2050,(F45+(G46*F45)),IF('5. Calculs'!AN87=0,IF('5. Calculs'!AN55=0,(F45+(G46*F45)),'5. Calculs'!AN55),'5. Calculs'!AN87)),0) -> 0 | H46: 0 | I46: 0
C47: =IF(B47<>"",IF(B47>2050,(C46+(D47*C46)),IF('5. Calculs'!AR88=0,IF('5. Calculs'!AR56=0,(C46+(D47*C46)),'5. Calculs'!AR56),'5. Calculs'!AR88)),0) -> 0 | F47: =IF(B47<>"",IF(B47>2050,(F46+(G47*F46)),IF('5. Calculs'!AN88=0,IF('5. Calculs'!AN56=0,(F46+(G47*F46)),'5. Calculs'!AN56),'5. Calculs'!AN88)),0) -> 0 | H47: 0 | I47: 0
C48: =IF(B48<>"",IF(B48>2050,(C47+(D48*C47)),IF('5. Calculs'!AR89=0,IF('5. Calculs'!AR57=0,(C47+(D48*C47)),'5. Calculs'!AR57),'5. Calculs'!AR89)),0) -> 0 | F48: =IF(B48<>"",IF(B48>2050,(F47+(G48*F47)),IF('5. Calculs'!AN89=0,IF('5. Calculs'!AN57=0,(F47+(G48*F47)),'5. Calculs'!AN57),'5. Calculs'!AN89)),0) -> 0 | H48: 0 | I48: 0
C49: =IF(B49<>"",IF(B49>2050,(C48+(D49*C48)),IF('5. Calculs'!AR90=0,IF('5. Calculs'!AR58=0,(C48+(D49*C48)),'5. Calculs'!AR58),'5. Calculs'!AR90)),0) -> 0 | F49: =IF(B49<>"",IF(B49>2050,(F48+(G49*F48)),IF('5. Calculs'!AN90=0,IF('5. Calculs'!AN58=0,(F48+(G49*F48)),'5. Calculs'!AN58),'5. Calculs'!AN90)),0) -> 0 | H49: 0 | I49: 0
C50: =IF(B50<>"",IF(B50>2050,(C49+(D50*C49)),IF('5. Calculs'!AR91=0,IF('5. Calculs'!AR59=0,(C49+(D50*C49)),'5. Calculs'!AR59),'5. Calculs'!AR91)),0) -> 0 | F50: =IF(B50<>"",IF(B50>2050,(F49+(G50*F49)),IF('5. Calculs'!AN91=0,IF('5. Calculs'!AN59=0,(F49+(G50*F49)),'5. Calculs'!AN59),'5. Calculs'!AN91)),0) -> 0 | H50: 0 | I50: 0
C51: =IF(B51<>"",IF(B51>2050,(C50+(D51*C50)),IF('5. Calculs'!AR92=0,IF('5. Calculs'!AR60=0,(C50+(D51*C50)),'5. Calculs'!AR60),'5. Calculs'!AR92)),0) -> 0 | F51: =IF(B51<>"",IF(B51>2050,(F50+(G51*F50)),IF('5. Calculs'!AN92=0,IF('5. Calculs'!AN60=0,(F50+(G51*F50)),'5. Calculs'!AN60),'5. Calculs'!AN92)),0) -> 0 | H51: 0 | I51: 0
C52: =IF(B52<>"",IF(B52>2050,(C51+(D52*C51)),IF('5. Calculs'!AR93=0,IF('5. Calculs'!AR61=0,(C51+(D52*C51)),'5. Calculs'!AR61),'5. Calculs'!AR93)),0) -> 0 | F52: =IF(B52<>"",IF(B52>2050,(F51+(G52*F51)),IF('5. Calculs'!AN93=0,IF('5. Calculs'!AN61=0,(F51+(G52*F51)),'5. Calculs'!AN61),'5. Calculs'!AN93)),0) -> 0 | H52: 0 | I52: 0
C53: =IF(B53<>"",IF(B53>2050,(C52+(D53*C52)),IF('5. Calculs'!AR94=0,IF('5. Calculs'!AR62=0,(C52+(D53*C52)),'5. Calculs'!AR62),'5. Calculs'!AR94)),0) -> 0 | F53: =IF(B53<>"",IF(B53>2050,(F52+(G53*F52)),IF('5. Calculs'!AN94=0,IF('5. Calculs'!AN62=0,(F52+(G53*F52)),'5. Calculs'!AN62),'5. Calculs'!AN94)),0) -> 0 | H53: 0 | I53: 0
C54: =IF(B54<>"",IF(B54>2050,(C53+(D54*C53)),IF('5. Calculs'!AR95=0,IF('5. Calculs'!AR63=0,(C53+(D54*C53)),'5. Calculs'!AR63),'5. Calculs'!AR95)),0) -> 0 | F54: =IF(B54<>"",IF(B54>2050,(F53+(G54*F53)),IF('5. Calculs'!AN95=0,IF('5. Calculs'!AN63=0,(F53+(G54*F53)),'5. Calculs'!AN63),'5. Calculs'!AN95)),0) -> 0 | H54: 0 | I54: 0
C55: =IF(B55<>"",IF(B55>2050,(C54+(D55*C54)),IF('5. Calculs'!AR96=0,IF('5. Calculs'!AR64=0,(C54+(D55*C54)),'5. Calculs'!AR64),'5. Calculs'!AR96)),0) -> 0 | F55: =IF(B55<>"",IF(B55>2050,(F54+(G55*F54)),IF('5. Calculs'!AN96=0,IF('5. Calculs'!AN64=0,(F54+(G55*F54)),'5. Calculs'!AN64),'5. Calculs'!AN96)),0) -> 0 | H55: 0 | I55: 0
C56: =IF(B56<>"",IF(B56>2050,(C55+(D56*C55)),IF('5. Calculs'!AR97=0,IF('5. Calculs'!AR65=0,(C55+(D56*C55)),'5. Calculs'!AR65),'5. Calculs'!AR97)),0) -> 0 | F56: =IF(B56<>"",IF(B56>2050,(F55+(G56*F55)),IF('5. Calculs'!AN97=0,IF('5. Calculs'!AN65=0,(F55+(G56*F55)),'5. Calculs'!AN65),'5. Calculs'!AN97)),0) -> 0 | H56: 0 | I56: 0
C57: =IF(B57<>"",IF(B57>2050,(C56+(D57*C56)),IF('5. Calculs'!AR98=0,IF('5. Calculs'!AR66=0,(C56+(D57*C56)),'5. Calculs'!AR66),'5. Calculs'!AR98)),0) -> 0 | F57: =IF(B57<>"",IF(B57>2050,(F56+(G57*F56)),IF('5. Calculs'!AN98=0,IF('5. Calculs'!AN66=0,(F56+(G57*F56)),'5. Calculs'!AN66),'5. Calculs'!AN98)),0) -> 0 | H57: 0 | I57: 0
C58: =IF(B58<>"",IF(B58>2050,(C57+(D58*C57)),IF('5. Calculs'!AR99=0,IF('5. Calculs'!AR67=0,(C57+(D58*C57)),'5. Calculs'!AR67),'5. Calculs'!AR99)),0) -> 0 | F58: =IF(B58<>"",IF(B58>2050,(F57+(G58*F57)),IF('5. Calculs'!AN99=0,IF('5. Calculs'!AN67=0,(F57+(G58*F57)),'5. Calculs'!AN67),'5. Calculs'!AN99)),0) -> 0 | H58: 0 | I58: 0
C59: =IF(B59<>"",IF(B59>2050,(C58+(D59*C58)),IF('5. Calculs'!AR100=0,IF('5. Calculs'!AR68=0,(C58+(D59*C58)),'5. Calculs'!AR68),'5. Calculs'!AR100)),0) -> 0 | F59: =IF(B59<>"",IF(B59>2050,(F58+(G59*F58)),IF('5. Calculs'!AN100=0,IF('5. Calculs'!AN68=0,(F58+(G59*F58)),'5. Calculs'!AN68),'5. Calculs'!AN100)),0) -> 0 | H59: 0 | I59: 0
C60: =IF(B60<>"",IF(B60>2050,(C59+(D60*C59)),IF('5. Calculs'!AR101=0,IF('5. Calculs'!AR69=0,(C59+(D60*C59)),'5. Calculs'!AR69),'5. Calculs'!AR101)),0) -> 0 | F60: =IF(B60<>"",IF(B60>2050,(F59+(G60*F59)),IF('5. Calculs'!AN101=0,IF('5. Calculs'!AN69=0,(F59+(G60*F59)),'5. Calculs'!AN69),'5. Calculs'!AN101)),0) -> 0 | H60: 0 | I60: 0
C61: =IF(B61<>"",IF(B61>2050,(C60+(D61*C60)),IF('5. Calculs'!AR102=0,IF('5. Calculs'!AR70=0,(C60+(D61*C60)),'5. Calculs'!AR70),'5. Calculs'!AR102)),0) -> 0 | F61: =IF(B61<>"",IF(B61>2050,(F60+(G61*F60)),IF('5. Calculs'!AN102=0,IF('5. Calculs'!AN70=0,(F60+(G61*F60)),'5. Calculs'!AN70),'5. Calculs'!AN102)),0) -> 0 | H61: 0 | I61: 0
C62: =IF(B62<>"",IF(B62>2050,(C61+(D62*C61)),IF('5. Calculs'!AR103=0,IF('5. Calculs'!AR71=0,(C61+(D62*C61)),'5. Calculs'!AR71),'5. Calculs'!AR103)),0) -> 0 | F62: =IF(B62<>"",IF(B62>2050,(F61+(G62*F61)),IF('5. Calculs'!AN103=0,IF('5. Calculs'!AN71=0,(F61+(G62*F61)),'5. Calculs'!AN71),'5. Calculs'!AN103)),0) -> 0 | H62: 0 | I62: 0
C63: =IF(B63<>"",IF(B63>2050,(C62+(D63*C62)),IF('5. Calculs'!AR104=0,IF('5. Calculs'!AR72=0,(C62+(D63*C62)),'5. Calculs'!AR72),'5. Calculs'!AR104)),0) -> 0 | F63: =IF(B63<>"",IF(B63>2050,(F62+(G63*F62)),IF('5. Calculs'!AN104=0,IF('5. Calculs'!AN72=0,(F62+(G63*F62)),'5. Calculs'!AN72),'5. Calculs'!AN104)),0) -> 0 | H63: 0 | I63: 0
C64: =IF(B64<>"",IF(B64>2050,(C63+(D64*C63)),IF('5. Calculs'!AR105=0,IF('5. Calculs'!AR73=0,(C63+(D64*C63)),'5. Calculs'!AR73),'5. Calculs'!AR105)),0) -> 0 | F64: =IF(B64<>"",IF(B64>2050,(F63+(G64*F63)),IF('5. Calculs'!AN105=0,IF('5. Calculs'!AN73=0,(F63+(G64*F63)),'5. Calculs'!AN73),'5. Calculs'!AN105)),0) -> 0 | H64: 0 | I64: 0
C65: =IF(B65<>"",IF(B65>2050,(C64+(D65*C64)),IF('5. Calculs'!AR106=0,IF('5. Calculs'!AR74=0,(C64+(D65*C64)),'5. Calculs'!AR74),'5. Calculs'!AR106)),0) -> 0 | F65: =IF(B65<>"",IF(B65>2050,(F64+(G65*F64)),IF('5. Calculs'!AN106=0,IF('5. Calculs'!AN74=0,(F64+(G65*F64)),'5. Calculs'!AN74),'5. Calculs'!AN106)),0) -> 0 | H65: 0 | I65: 0

Sheet Automation Reference (hidden)
B2: Characterization Dropdown | D2: Type of GHG Reduction | F2: Count of 'Not within project scope' - Project Components | H2: Count of 'Not within project scope' - Baseline Components
B3: Composante émettrice | D3: Directes | F3: =COUNTIF(Table5[Caractérisation '[Liste déroulante']],"Not within project scope") -> 0 | H3: =COUNTIF(Table12[Caractérisation '[Liste déroulante']],"Not within project scope") -> 0
B4: Composante non émettrice | D4: Indirectes
B5: Ne relève pas de la portée du projet | F5: Count of project components | H5: Count of baseline components
F6: =COUNTIF(Table5[Caractérisation '[Liste déroulante']],"Emitting component")+COUNTIF(Table5[Caractérisation '[Liste déroulante']],"Non-emitting component") -> 0 | H6: =COUNTIF(Table12[Caractérisation '[Liste déroulante']],"Emitting component")+COUNTIF(Table12[Caractérisation '[Liste déroulante']],"Non-emitting component") -> 0
